NUMERO_MANDATO;RIGA_MANDATO;QUIET;IMPORTO_RIGA;IMPORTO_MANDATO;BENEFICIARIO;CIG;TITOLO_PAGAMENTO;DATA_MANDATO;CAPITOLO;ARTICOLO;NUMERO_IMPEGNO;TITOLO;DESCR_TITOLO;LIVELLO_II;DESCR_LIVELLO_II;LIVELLO_III;DESCR_LIVELLO_III;LIVELLO_IV;DESCR_LIVELLO_IV;LIVELLO_V;DESCR_LIVELLO_V;DATA_PAG_EFF;
1;1;0;"61,00";"215,90";CREDIT NETWORK e FINANCE;Z131CAC1BF;POLIZZE FIDEJUSSORIE PER ATRAVERSAMENTO E FIANCHEGGIAMENTO STRADE -;17-01-2018;2103;0;197;1;Spese correnti;10;Altre spese correnti;4;Premi di assicurazione;99;Altri premi di assicurazione n.a.c.;999;Altri premi di assicurazione n.a.c.;17-01-2018;
1;2;0;"154,90";"215,90";SOCIETA' CATTOLICA DI ASSICURAZIONE COOp. a r.l.;Z131CAC1BF;POLIZZE FIDEJUSSORIE PER ATRAVERSAMENTO E FIANCHEGGIAMENTO STRADE -;17-01-2018;2103;0;197;1;Spese correnti;10;Altre spese correnti;4;Premi di assicurazione;99;Altri premi di assicurazione n.a.c.;999;Altri premi di assicurazione n.a.c.;17-01-2018;
2;1;0;"6.023,95";"6.023,95";DIPENDENTI COMUNALI; ;STIPENDI MESE DI: GENNAIO 18;22-01-2018;1001;0;0;1;Spese correnti;3;Acquisto di beni e servizi;2;Acquisto di servizi;1;Organi e incarichi istituzionali dell'amministrazione;1;Organi istituzionali dell'amministrazione - Indennit�;22-01-2018;
48;1;0;"101,10";"101,10";ECONOMO COMUNALE - PETACCIA Silvana; ;Rimborso bollette;24-01-2018;1050;0;258;1;Spese correnti;3;Acquisto di beni e servizi;1;Acquisto di beni;2;Altri beni di consumo;6;Materiale informatico;24-01-2018;
49;1;0;"53,28";"53,28";ECONOMO COMUNALE - PETACCIA Silvana; ;Rimborso bollette;24-01-2018;1050;0;270;1;Spese correnti;3;Acquisto di beni e servizi;1;Acquisto di beni;2;Altri beni di consumo;6;Materiale informatico;24-01-2018;
50;1;0;"74,60";"74,60";ECONOMO COMUNALE - PETACCIA Silvana; ;Rimborso bollette;24-01-2018;1050;0;278;1;Spese correnti;3;Acquisto di beni e servizi;1;Acquisto di beni;2;Altri beni di consumo;6;Materiale informatico;24-01-2018;
51;1;0;"30,50";"30,50";ECONOMO COMUNALE - PETACCIA Silvana; ;Rimborso bollette;24-01-2018;1087;0;345;1;Spese correnti;3;Acquisto di beni e servizi;1;Acquisto di beni;2;Altri beni di consumo;1;"Carta, cancelleria e stampati";24-01-2018;
52;1;0;"39,00";"39,00";ECONOMO COMUNALE - PETACCIA Silvana; ;Rimborso bollette;24-01-2018;1811;0;259;1;Spese correnti;3;Acquisto di beni e servizi;1;Acquisto di beni;2;Altri beni di consumo;999;Altri beni e materiali di consumo n.a.c.;24-01-2018;
53;1;0;"40,00";"40,00";ECONOMO COMUNALE - PETACCIA Silvana; ;Rimborso bollette;24-01-2018;1812;0;309;1;Spese correnti;3;Acquisto di beni e servizi;2;Acquisto di servizi;9;Manutenzione ordinaria e riparazioni;12;Manutenzione ordinaria e riparazioni di terreni e beni materiali non prodotti;24-01-2018;
54;1;0;"51,23";"51,23";ECONOMO COMUNALE - PETACCIA Silvana; ;Rimborso bollette;24-01-2018;2091;0;310;1;Spese correnti;3;Acquisto di beni e servizi;2;Acquisto di servizi;11;Prestazioni professionali e specialistiche;999;Altre prestazioni professionali e specialistiche n.a.c.;24-01-2018;
55;1;0;"265,00";"265,00";LA FENICE S.R.L.S.;Z1F2091E08;SALDO Fatt.n. 1/01  del 01/12/2017 FORNITURA DI N4 CORONE DI ALLORO PER RICORRENZA 4 NOVEMBRE 2017;26-01-2018;1005;0;242;1;Spese correnti;3;Acquisto di beni e servizi;1;Acquisto di beni;2;Altri beni di consumo;9;Beni per attivit� di rappresentanza;26-01-2018;
56;1;0;"350,00";"350,00";CARBONE Remoaldo; ;SALDO Fatt.n. 1  del 14/12/2017 Prestazione musicale festa degli anziani;26-01-2018;1795;0;264;1;Spese correnti;3;Acquisto di beni e servizi;2;Acquisto di servizi;15;Contratti di servizio pubblico;8;Contratti di servizio di assistenza sociale residenziale e semiresidenziale;26-01-2018;
57;1;0;"200,00";"200,00";TUCCI Christian;ZB21F5B27A;SALDO Fatt.n. 1  del 07/11/2017 Prestazione musicale;26-01-2018;2091;0;151;1;Spese correnti;3;Acquisto di beni e servizi;2;Acquisto di servizi;11;Prestazioni professionali e specialistiche;999;Altre prestazioni professionali e specialistiche n.a.c.;26-01-2018;
58;1;0;"103,20";"103,20";ENI S.p.A. Divisione Gas & Power; ;SALDO Fatt.n. 29862724  del 30/09/2017 Fornitura buoni carburante;26-01-2018;1926;0;21;1;Spese correnti;3;Acquisto di beni e servizi;1;Acquisto di beni;2;Altri beni di consumo;2;"Carburanti, combustibili e lubrificanti";26-01-2018;
60;1;0;"469,50";"469,50";FGA CAPITAL SAVA - FRENTAUTO; ;FCA BANK S.P.A. CORSO G. AGNEL-(Y1) - Addebito SDD CO85687874461870048 CO8568787 (P.       7 -R.       7);26-01-2018;1279;0;28;1;Spese correnti;3;Acquisto di beni e servizi;2;Acquisto di servizi;8;Leasing operativo;1;Leasing operativo di mezzi di trasporto;26-01-2018;
62;1;0;"600,00";"600,00";ANZOLIN Ornella;ZA41F4DBE7;SALDO Fatt.n. 1  del 26/01/2018 Prestazione musicale;26-01-2018;2091;0;141;1;Spese correnti;3;Acquisto di beni e servizi;2;Acquisto di servizi;11;Prestazioni professionali e specialistiche;999;Altre prestazioni professionali e specialistiche n.a.c.;26-01-2018;
69;1;0;"6.715,17";"6.715,17";CASSA DEPOSITI E PRESTITI; ;Cassa Depositi e Prestiti SPA-(Y1) - Addebito SDD RATE AMMORTAMENTO PRESTITI MEF (P.      20 -R.      76);01-02-2018;1006;0;99999;1;Spese correnti;7;Interessi passivi;5;Interessi su Mutui e altri finanziamenti a medio lungo termine;4;Interessi passivi su finanziamenti a medio lungo termine a Imprese;3;Interessi passivi a Cassa Depositi e Prestiti SPA su mutui e altri finanziamenti a medio lungo termine;01-02-2018;
70;1;0;"411,52";"411,52";ENI S.p.A. Divisione Gas & Power; ;ENI S.P.A.-(Y1) - Addebito SDD 002996410311017 1400135268269-1601187537 (P.      21 -R.      77);01-02-2018;1926;0;21;1;Spese correnti;3;Acquisto di beni e servizi;1;Acquisto di beni;2;Altri beni di consumo;2;"Carburanti, combustibili e lubrificanti";01-02-2018;
73;1;0;"90,53";"90,53";ENI S.p.A. Divisione Gas & Power; ;SALDO Fatt.n. 29964105  del 31/10/2017 Fornitura buoni carburante ottobre 2017;01-02-2018;1926;0;21;1;Spese correnti;3;Acquisto di beni e servizi;1;Acquisto di beni;2;Altri beni di consumo;2;"Carburanti, combustibili e lubrificanti";01-02-2018;
76;1;0;"-8.387,52";"25.940,26";CONSORZIO COOPERATIVE SOCIALI S.G.S.;649009322C;SALDO Fatt.n. 877/10  del 27/07/2017 Nota dic redito su fatturazione Gennaio/luglio 2016.;01-02-2018;1425;0;17;1;Spese correnti;3;Acquisto di beni e servizi;2;Acquisto di servizi;15;Contratti di servizio pubblico;10;Contratti di servizio di asilo nido;01-02-2018;
76;2;0;"3.706,18";"25.940,26";CONSORZIO COOPERATIVE SOCIALI S.G.S.;649009322C;SALDO Fatt.n. 509/10  del 15/06/2016 Servizio di supporto e assistenza asilo nido delfino blu - Maggio 2016.;01-02-2018;1425;0;17;1;Spese correnti;3;Acquisto di beni e servizi;2;Acquisto di servizi;15;Contratti di servizio pubblico;10;Contratti di servizio di asilo nido;01-02-2018;
76;3;0;"4.058,74";"25.940,26";CONSORZIO COOPERATIVE SOCIALI S.G.S.;649009322C;SALDO Fatt.n. 368/10  del 13/05/2016 Servizio gestione asilo nido - Aprile 2016;01-02-2018;1425;0;17;1;Spese correnti;3;Acquisto di beni e servizi;2;Acquisto di servizi;15;Contratti di servizio pubblico;10;Contratti di servizio di asilo nido;01-02-2018;
76;4;0;"4.058,74";"25.940,26";CONSORZIO COOPERATIVE SOCIALI S.G.S.;649009322C;SALDO Fatt.n. 765/10  del 30/08/2016 Gestione asilo nido - Giugno 2016.;01-02-2018;1425;0;17;1;Spese correnti;3;Acquisto di beni e servizi;2;Acquisto di servizi;15;Contratti di servizio pubblico;10;Contratti di servizio di asilo nido;01-02-2018;
76;5;0;"5.208,05";"25.940,26";CONSORZIO COOPERATIVE SOCIALI S.G.S.;649009322C;SALDO Fatt.n. 95/10  del 07/03/2016 Gestione asilo nido - Gennaio 2016.;01-02-2018;1425;0;17;1;Spese correnti;3;Acquisto di beni e servizi;2;Acquisto di servizi;15;Contratti di servizio pubblico;10;Contratti di servizio di asilo nido;01-02-2018;
76;6;0;"5.208,05";"25.940,26";CONSORZIO COOPERATIVE SOCIALI S.G.S.;649009322C;SALDO Fatt.n. 278/10  del 13/04/2016 Gestione asilio nido - marzo 2016.;01-02-2018;1425;0;17;1;Spese correnti;3;Acquisto di beni e servizi;2;Acquisto di servizi;15;Contratti di servizio pubblico;10;Contratti di servizio di asilo nido;01-02-2018;
76;7;0;"5.560,71";"25.940,26";CONSORZIO COOPERATIVE SOCIALI S.G.S.;649009322C;SALDO Fatt.n. 96/10  del 07/03/2016 Gestione asilo nido - Febbraio 2016.;01-02-2018;1425;0;17;1;Spese correnti;3;Acquisto di beni e servizi;2;Acquisto di servizi;15;Contratti di servizio pubblico;10;Contratti di servizio di asilo nido;01-02-2018;
76;8;0;"6.527,31";"25.940,26";CONSORZIO COOPERATIVE SOCIALI S.G.S.;649009322C;SALDO Fatt.n. 766/10  del 30/08/2016 Gestione asilo nido - Luglio 2016..;01-02-2018;1425;0;17;1;Spese correnti;3;Acquisto di beni e servizi;2;Acquisto di servizi;15;Contratti di servizio pubblico;10;Contratti di servizio di asilo nido;01-02-2018;
78;1;0;"500,00";"500,00";MANCINI Mariella; ;Liquidazione transazione stragiudiziale - Valentini Pio/Comune di San Vito Chietino;02-02-2018;1058;0;327;1;Spese correnti;3;Acquisto di beni e servizi;2;Acquisto di servizi;99;Altri servizi;2;Altre spese legali;02-02-2018;
79;1;0;"37.341,81";"37.341,81";AMBITO SOCIALE DISTRETT. N. 11 - GESTIONE SOCIALE N. 2; ;Piano di Zona  2017 - Ufficio della  Zona di gestione locale n. 2  Ambito distrettuale n. 11 "Frentano" - Novembre/dicembre 2017.;06-02-2018;1794;0;254;1;Spese correnti;4;Trasferimenti correnti;1;Trasferimenti correnti a Amministrazioni Pubbliche;2;Trasferimenti correnti a Amministrazioni Locali;5;Trasferimenti correnti a Unioni di Comuni;06-02-2018;
80;1;0;"-676,02";"12.168,28";GECABUS SRLS;6337728A96;SALDO Fatt.n. 10/2017/PA  del 11/01/2018 Nota di credito su fattura di dicembre 2017;06-02-2018;1424;0;190;1;Spese correnti;3;Acquisto di beni e servizi;2;Acquisto di servizi;15;Contratti di servizio pubblico;2;Contratti di servizio di trasporto scolastico;06-02-2018;
80;2;0;"12.844,30";"12.168,28";GECABUS SRLS;6337728A96;SALDO Fatt.n. 9/2017/PA  del 23/12/2017 Servizio trasporto scolastico - Dicembre 2017;06-02-2018;1424;0;190;1;Spese correnti;3;Acquisto di beni e servizi;2;Acquisto di servizi;15;Contratti di servizio pubblico;2;Contratti di servizio di trasporto scolastico;06-02-2018;
81;1;0;"1.443,26";"3.143,94";"F. &amp; C. COSTRUZIONI DI FLAMMINIO MARIO";X3218983F9;SALDO Fatt.n. 02/2018  del 04/01/2018 Prestazioni da muratore;06-02-2018;3053;0;137;2;Spese in conto capitale;2;Investimenti fissi lordi e acquisto di terreni;1;Beni materiali;9;Beni immobili;15;Cimiteri;06-02-2018;
81;2;0;"1.700,68";"3.143,94";"F. &amp; C. COSTRUZIONI DI FLAMMINIO MARIO";X3218983F9;SALDO Fatt.n. 01/2018  del 04/01/2018 Pretazioni da muratore.;06-02-2018;3053;0;137;2;Spese in conto capitale;2;Investimenti fissi lordi e acquisto di terreni;1;Beni materiali;9;Beni immobili;15;Cimiteri;06-02-2018;
82;1;0;"1.671,68";"1.671,68";CROCE AZZURRA LANCIANO;Z961FD58C5;SALDO Fatt.n. 85/17/PA  del 31/12/2017 Servizio Trasporto Disabili Novembre 2017;06-02-2018;1028;0;271;1;Spese correnti;3;Acquisto di beni e servizi;2;Acquisto di servizi;15;Contratti di servizio pubblico;3;Contratti di servizio per il trasporto di disabili e anziani;06-02-2018;
83;1;0;"2.323,78";"6.566,44";COOPERATIVA PRIMAVERA Soc. Coop.;6355628E21;SALDO Fatt.n. 3/PA  del 02/01/2018 Fattura gestione servizio mensa c/o scuola materna S.Apollinare mese dicembre 2017;06-02-2018;1422;0;189;1;Spese correnti;3;Acquisto di beni e servizi;2;Acquisto di servizi;15;Contratti di servizio pubblico;6;Contratti di servizio per le mense scolastiche;06-02-2018;
83;2;0;"4.242,66";"6.566,44";COOPERATIVA PRIMAVERA Soc. Coop.;6355628E21;ACCONTO Fatt.n. 1/PA  del 02/01/2018 Fattura per gestione servizio mensa c/o scuola materna S.Vito Paese mese di dicembre 2017;06-02-2018;1422;0;189;1;Spese correnti;3;Acquisto di beni e servizi;2;Acquisto di servizi;15;Contratti di servizio pubblico;6;Contratti di servizio per le mense scolastiche;06-02-2018;
84;1;0;"16,14";"736,86";COOPERATIVA PRIMAVERA Soc. Coop.;6355628E21;SALDO Fatt.n. 1/PA  del 02/01/2018 Fattura per gestione servizio mensa c/o scuola materna S.Vito Paese mese di dicembre 2017;06-02-2018;1422;0;189;1;Spese correnti;3;Acquisto di beni e servizi;2;Acquisto di servizi;15;Contratti di servizio pubblico;6;Contratti di servizio per le mense scolastiche;06-02-2018;
84;2;0;"720,72";"736,86";COOPERATIVA PRIMAVERA Soc. Coop.;6355628E21;SALDO Fatt.n. 2/PA  del 02/01/2018 Fattura gestione servizio mensa c/o nido San Vito Paese mese dicembre 2017;06-02-2018;1422;0;189;1;Spese correnti;3;Acquisto di beni e servizi;2;Acquisto di servizi;15;Contratti di servizio pubblico;6;Contratti di servizio per le mense scolastiche;06-02-2018;
85;1;0;"1.127,28";"1.127,28";SOC. COOP. SOCIALE "SOCIAL-SERVICE" a r.l.;Z11200F4CD;SALDO Fatt.n. FATTPA 297_17  del 15/12/2017 Gestione biblitoeca comunale - Periodo: 1 Ottobre al 9 dicembre 2017;06-02-2018;1474;0;220;1;Spese correnti;3;Acquisto di beni e servizi;2;Acquisto di servizi;99;Altri servizi;999;Altri servizi diversi n.a.c.;06-02-2018;
86;1;0;"8.648,00";"8.648,00";NUOVA CASSA DI RISPARMIO DI CHIETI S.p.A. BANCA TEATINA;D017B6A50;SALDO Fatt.n. 378  del 07/09/2017 Compenso per servizio tesoreria e spese anno 2016.;06-02-2018;1054;0;0;1;Spese correnti;3;Acquisto di beni e servizi;2;Acquisto di servizi;17;Servizi finanziari;2;Oneri per servizio di tesoreria;06-02-2018;
87;1;0;"597,80";"1.195,60";EUROSERVIZI S.r.l.;Z191EEB415;SALDO Fatt.n. 147  del 30/11/2017 Servizio di pulizie uffici comunali - Novembre 2017;06-02-2018;1483;0;76;1;Spese correnti;3;Acquisto di beni e servizi;2;Acquisto di servizi;13;Servizi ausiliari per il funzionamento dell'ente;2;Servizi di pulizia e lavanderia;06-02-2018;
87;2;0;"597,80";"1.195,60";EUROSERVIZI S.r.l.;Z191EEB415;SALDO Fatt.n. 159  del 30/12/2017 Servizio di pulizie uffici comunali - Dicembre 2017.;06-02-2018;1483;0;76;1;Spese correnti;3;Acquisto di beni e servizi;2;Acquisto di servizi;13;Servizi ausiliari per il funzionamento dell'ente;2;Servizi di pulizia e lavanderia;06-02-2018;
109;1;0;"-3.209,96";"43.111,64";DIODORO ECOLOGIA S.r.l.;0502958E0E;SALDO Fatt.n. 2017/01/0034  del 24/02/2017 NOTA CREDITO A STORNO PARZIALE PER ERRATO CALCOLO INTERESSI DI MORA SU NS. FT. 384/01 DEL 30/12/2016. COME DA DETTAGLIO ALLEGATO;07-02-2018;1741;0;22;1;Spese correnti;3;Acquisto di beni e servizi;2;Acquisto di servizi;15;Contratti di servizio pubblico;4;Contratti di servizio per la raccolta rifiuti;07-02-2018;
109;2;0;"46.321,60";"43.111,64";DIODORO ECOLOGIA S.r.l.;0502958E0E;"SALDO Fatt.n. 2016/01/0384  del 30/12/2016 AI SENSI DEL D. LGS. 231 09/10/2002,COME MODIFI. DAL D. LGS 192/2012 SI EMETTE FATTURA PER LIQUIDAZIONE INTERESSI DI MORA SU NOSTRE FATTURE EMESSE PER SERVIZI NEI CONFRONTI DELLA VS. AMMINISTRAZIONE";07-02-2018;1741;0;22;1;Spese correnti;3;Acquisto di beni e servizi;2;Acquisto di servizi;15;Contratti di servizio pubblico;4;Contratti di servizio per la raccolta rifiuti;07-02-2018;
110;1;0;"2.820,00";"2.820,00";RISOLO Debora; ;LIQUIDAZIONE SENTENZA N. 393/2017.;12-02-2018;1096;0;23;1;Spese correnti;10;Altre spese correnti;5;"Spese dovute a sanzioni, risarcimenti e indennizzi";2;Spese per risarcimento danni;1;Spese per risarcimento danni;12-02-2018;
111;1;0;"3.059,22";"3.059,22";D'ANGELO Iolanda; ;SEGNALAZIONE DANNI SU TERRENI AGRICOLI ALLA CONTRADA BUFARA DI PROPRIETA' DANGELO IOLANDA  SINISTRO BA00589317 DEL 01.03.2015  DANGELO IOLANDA C/ COMUNE DI SAN VITO CHIETINO  ATTO DI PRECETTO A SEGUITO DI DECRETO INGIUNTIVO DEFINITIVAMENTE ESECUTIVO;12-02-2018;1096;0;24;1;Spese correnti;10;Altre spese correnti;5;"Spese dovute a sanzioni, risarcimenti e indennizzi";2;Spese per risarcimento danni;1;Spese per risarcimento danni;12-02-2018;
114;1;0;"73,15";"5.326,47";ODOARDO ZECCA S.r.l.; ;SALDO Fatt.n. P2017/000169  del 27/09/2017 Bolletta Energia Elettrica relativa al periodo 01/07/2017 - 31/08/2017;14-02-2018;1036;0;58;1;Spese correnti;3;Acquisto di beni e servizi;2;Acquisto di servizi;5;Utenze e canoni;4;Energia elettrica;14-02-2018;
114;2;0;"73,15";"5.326,47";ODOARDO ZECCA S.r.l.; ;SALDO Fatt.n. P2017/000208  del 24/11/2017 Bolletta Energia Elettrica relativa al periodo 01/09/2017 - 31/10/2017;14-02-2018;1036;0;58;1;Spese correnti;3;Acquisto di beni e servizi;2;Acquisto di servizi;5;Utenze e canoni;4;Energia elettrica;14-02-2018;
114;3;0;"84,01";"5.326,47";ODOARDO ZECCA S.r.l.; ;SALDO Fatt.n. P2017/000192  del 27/09/2017 Bolletta Energia Elettrica relativa al periodo 01/07/2017 - 31/08/2017;14-02-2018;1036;0;58;1;Spese correnti;3;Acquisto di beni e servizi;2;Acquisto di servizi;5;Utenze e canoni;4;Energia elettrica;14-02-2018;
114;4;0;"84,96";"5.326,47";ODOARDO ZECCA S.r.l.; ;SALDO Fatt.n. P2017/000227  del 24/11/2017 Bolletta Energia Elettrica relativa al periodo 01/09/2017 - 31/10/2017;14-02-2018;1036;0;58;1;Spese correnti;3;Acquisto di beni e servizi;2;Acquisto di servizi;5;Utenze e canoni;4;Energia elettrica;14-02-2018;
114;5;0;"100,56";"5.326,47";ODOARDO ZECCA S.r.l.; ;SALDO Fatt.n. P2017/000188  del 27/09/2017 Bolletta Energia Elettrica relativa al periodo 01/07/2017 - 31/08/2017;14-02-2018;1036;0;58;1;Spese correnti;3;Acquisto di beni e servizi;2;Acquisto di servizi;5;Utenze e canoni;4;Energia elettrica;14-02-2018;
114;6;0;"399,63";"5.326,47";ODOARDO ZECCA S.r.l.; ;ACCONTO Fatt.n. P2017/000241  del 27/12/2017 Bolletta Energia Elettrica relativa al periodo 01/11/2017 - 30/11/2017;14-02-2018;1036;0;58;1;Spese correnti;3;Acquisto di beni e servizi;2;Acquisto di servizi;5;Utenze e canoni;4;Energia elettrica;14-02-2018;
114;7;0;"450,91";"5.326,47";ODOARDO ZECCA S.r.l.; ;SALDO Fatt.n. P2017/000228  del 24/11/2017 Bolletta Energia Elettrica relativa al periodo 01/10/2017 - 31/10/2017;14-02-2018;1036;0;58;1;Spese correnti;3;Acquisto di beni e servizi;2;Acquisto di servizi;5;Utenze e canoni;4;Energia elettrica;14-02-2018;
114;8;0;"456,54";"5.326,47";ODOARDO ZECCA S.r.l.; ;SALDO Fatt.n. P2017/000199  del 23/10/2017 Bolletta Energia Elettrica relativa al periodo 01/09/2017 - 30/09/2017;14-02-2018;1036;0;58;1;Spese correnti;3;Acquisto di beni e servizi;2;Acquisto di servizi;5;Utenze e canoni;4;Energia elettrica;14-02-2018;
114;9;0;"468,28";"5.326,47";ODOARDO ZECCA S.r.l.; ;SALDO Fatt.n. P2017/000189  del 27/09/2017 Bolletta Energia Elettrica relativa al periodo 01/08/2017 - 31/08/2017;14-02-2018;1036;0;58;1;Spese correnti;3;Acquisto di beni e servizi;2;Acquisto di servizi;5;Utenze e canoni;4;Energia elettrica;14-02-2018;
114;10;0;"3.135,28";"5.326,47";ODOARDO ZECCA S.r.l.; ;ACCONTO Fatt.n. P2017/000122  del 12/07/2017 Bolletta Energia Elettrica relativa al periodo 01/11/2014 - 30/04/2017;14-02-2018;1036;0;58;1;Spese correnti;3;Acquisto di beni e servizi;2;Acquisto di servizi;5;Utenze e canoni;4;Energia elettrica;14-02-2018;
115;1;0;"73,15";"146,30";ODOARDO ZECCA S.r.l.; ;SALDO Fatt.n. P2017/000164  del 27/09/2017 Bolletta Energia Elettrica relativa al periodo 01/07/2017 - 31/08/2017;14-02-2018;1269;0;68;1;Spese correnti;3;Acquisto di beni e servizi;2;Acquisto di servizi;5;Utenze e canoni;4;Energia elettrica;14-02-2018;
115;2;0;"73,15";"146,30";ODOARDO ZECCA S.r.l.; ;SALDO Fatt.n. P2017/000203  del 24/11/2017 Bolletta Energia Elettrica relativa al periodo 01/09/2017 - 31/10/2017;14-02-2018;1269;0;68;1;Spese correnti;3;Acquisto di beni e servizi;2;Acquisto di servizi;5;Utenze e canoni;4;Energia elettrica;14-02-2018;
116;1;0;"106,57";"756,00";ODOARDO ZECCA S.r.l.; ;SALDO Fatt.n. P2017/000175  del 27/09/2017 Bolletta Energia Elettrica relativa al periodo 01/07/2017 - 31/08/2017;14-02-2018;1344;0;69;1;Spese correnti;3;Acquisto di beni e servizi;2;Acquisto di servizi;5;Utenze e canoni;4;Energia elettrica;14-02-2018;
116;2;0;"152,16";"756,00";ODOARDO ZECCA S.r.l.; ;SALDO Fatt.n. P2017/000190  del 27/09/2017 Bolletta Energia Elettrica relativa al periodo 01/07/2017 - 31/08/2017;14-02-2018;1344;0;69;1;Spese correnti;3;Acquisto di beni e servizi;2;Acquisto di servizi;5;Utenze e canoni;4;Energia elettrica;14-02-2018;
116;3;0;"205,52";"756,00";ODOARDO ZECCA S.r.l.; ;SALDO Fatt.n. P2017/000229  del 24/11/2017 Bolletta Energia Elettrica relativa al periodo 01/09/2017 - 31/10/2017;14-02-2018;1344;0;69;1;Spese correnti;3;Acquisto di beni e servizi;2;Acquisto di servizi;5;Utenze e canoni;4;Energia elettrica;14-02-2018;
116;4;0;"291,75";"756,00";ODOARDO ZECCA S.r.l.; ;SALDO Fatt.n. P2017/000214  del 24/11/2017 Bolletta Energia Elettrica relativa al periodo 01/09/2017 - 31/10/2017;14-02-2018;1344;0;69;1;Spese correnti;3;Acquisto di beni e servizi;2;Acquisto di servizi;5;Utenze e canoni;4;Energia elettrica;14-02-2018;
117;1;0;"12,07";"1.366,32";ODOARDO ZECCA S.r.l.; ;ACCONTO Fatt.n. P2017/000238  del 27/12/2017 Bolletta Energia Elettrica relativa al periodo 01/11/2017 - 30/11/2017;14-02-2018;1370;0;59;1;Spese correnti;3;Acquisto di beni e servizi;2;Acquisto di servizi;5;Utenze e canoni;4;Energia elettrica;14-02-2018;
117;2;0;"67,33";"1.366,32";ODOARDO ZECCA S.r.l.; ;SALDO Fatt.n. P2017/000187  del 27/09/2017 Bolletta Energia Elettrica relativa al periodo 01/08/2017 - 31/08/2017;14-02-2018;1370;0;59;1;Spese correnti;3;Acquisto di beni e servizi;2;Acquisto di servizi;5;Utenze e canoni;4;Energia elettrica;14-02-2018;
117;3;0;"73,15";"1.366,32";ODOARDO ZECCA S.r.l.; ;SALDO Fatt.n. P2017/000181  del 27/09/2017 Bolletta Energia Elettrica relativa al periodo 01/07/2017 - 31/08/2017;14-02-2018;1370;0;59;1;Spese correnti;3;Acquisto di beni e servizi;2;Acquisto di servizi;5;Utenze e canoni;4;Energia elettrica;14-02-2018;
117;4;0;"73,15";"1.366,32";ODOARDO ZECCA S.r.l.; ;SALDO Fatt.n. P2017/000220  del 24/11/2017 Bolletta Energia Elettrica relativa al periodo 01/09/2017 - 31/10/2017;14-02-2018;1370;0;59;1;Spese correnti;3;Acquisto di beni e servizi;2;Acquisto di servizi;5;Utenze e canoni;4;Energia elettrica;14-02-2018;
117;5;0;"91,61";"1.366,32";ODOARDO ZECCA S.r.l.; ;SALDO Fatt.n. P2017/000242  del 27/12/2017 Bolletta Energia Elettrica relativa al periodo 01/09/2017 - 12/11/2017;14-02-2018;1370;0;59;1;Spese correnti;3;Acquisto di beni e servizi;2;Acquisto di servizi;5;Utenze e canoni;4;Energia elettrica;14-02-2018;
117;6;0;"138,12";"1.366,32";ODOARDO ZECCA S.r.l.; ;SALDO Fatt.n. P2017/000186  del 27/09/2017 Bolletta Energia Elettrica relativa al periodo 01/07/2017 - 31/08/2017;14-02-2018;1370;0;59;1;Spese correnti;3;Acquisto di beni e servizi;2;Acquisto di servizi;5;Utenze e canoni;4;Energia elettrica;14-02-2018;
117;7;0;"270,33";"1.366,32";ODOARDO ZECCA S.r.l.; ;SALDO Fatt.n. P2017/000198  del 23/10/2017 Bolletta Energia Elettrica relativa al periodo 01/09/2017 - 30/09/2017;14-02-2018;1370;0;59;1;Spese correnti;3;Acquisto di beni e servizi;2;Acquisto di servizi;5;Utenze e canoni;4;Energia elettrica;14-02-2018;
117;8;0;"288,90";"1.366,32";ODOARDO ZECCA S.r.l.; ;SALDO Fatt.n. P2017/000225  del 24/11/2017 Bolletta Energia Elettrica relativa al periodo 01/09/2017 - 31/10/2017;14-02-2018;1370;0;59;1;Spese correnti;3;Acquisto di beni e servizi;2;Acquisto di servizi;5;Utenze e canoni;4;Energia elettrica;14-02-2018;
117;9;0;"351,66";"1.366,32";ODOARDO ZECCA S.r.l.; ;SALDO Fatt.n. P2017/000226  del 24/11/2017 Bolletta Energia Elettrica relativa al periodo 01/10/2017 - 31/10/2017;14-02-2018;1370;0;59;1;Spese correnti;3;Acquisto di beni e servizi;2;Acquisto di servizi;5;Utenze e canoni;4;Energia elettrica;14-02-2018;
118;1;0;"105,33";"1.008,88";ODOARDO ZECCA S.r.l.; ;SALDO Fatt.n. P2017/000140  del 27/07/2017 Bolletta Energia Elettrica relativa al periodo 01/05/2017 - 30/06/2017;14-02-2018;1387;0;70;1;Spese correnti;3;Acquisto di beni e servizi;2;Acquisto di servizi;5;Utenze e canoni;4;Energia elettrica;14-02-2018;
118;2;0;"134,35";"1.008,88";ODOARDO ZECCA S.r.l.; ;SALDO Fatt.n. P2017/000173  del 27/09/2017 Bolletta Energia Elettrica relativa al periodo 01/08/2017 - 31/08/2017;14-02-2018;1387;0;70;1;Spese correnti;3;Acquisto di beni e servizi;2;Acquisto di servizi;5;Utenze e canoni;4;Energia elettrica;14-02-2018;
118;3;0;"180,87";"1.008,88";ODOARDO ZECCA S.r.l.; ;SALDO Fatt.n. P2017/000196  del 23/10/2017 Bolletta Energia Elettrica relativa al periodo 01/09/2017 - 30/09/2017;14-02-2018;1387;0;70;1;Spese correnti;3;Acquisto di beni e servizi;2;Acquisto di servizi;5;Utenze e canoni;4;Energia elettrica;14-02-2018;
118;4;0;"236,15";"1.008,88";ODOARDO ZECCA S.r.l.; ;SALDO Fatt.n. P2017/000212  del 24/11/2017 Bolletta Energia Elettrica relativa al periodo 01/10/2017 - 31/10/2017;14-02-2018;1387;0;70;1;Spese correnti;3;Acquisto di beni e servizi;2;Acquisto di servizi;5;Utenze e canoni;4;Energia elettrica;14-02-2018;
118;5;0;"352,18";"1.008,88";ODOARDO ZECCA S.r.l.; ;SALDO Fatt.n. P2017/000238  del 27/12/2017 Bolletta Energia Elettrica relativa al periodo 01/11/2017 - 30/11/2017;14-02-2018;1387;0;70;1;Spese correnti;3;Acquisto di beni e servizi;2;Acquisto di servizi;5;Utenze e canoni;4;Energia elettrica;14-02-2018;
119;1;0;"99,91";"201,94";ODOARDO ZECCA S.r.l.; ;SALDO Fatt.n. P2017/000207  del 24/11/2017 Bolletta Energia Elettrica relativa al periodo 01/09/2017 - 31/10/2017;14-02-2018;1479;0;64;1;Spese correnti;3;Acquisto di beni e servizi;2;Acquisto di servizi;5;Utenze e canoni;4;Energia elettrica;14-02-2018;
119;2;0;"102,03";"201,94";ODOARDO ZECCA S.r.l.; ;SALDO Fatt.n. P2017/000168  del 27/09/2017 Bolletta Energia Elettrica relativa al periodo 01/07/2017 - 31/08/2017;14-02-2018;1479;0;64;1;Spese correnti;3;Acquisto di beni e servizi;2;Acquisto di servizi;5;Utenze e canoni;4;Energia elettrica;14-02-2018;
120;1;0;"71,59";"1.062,31";ODOARDO ZECCA S.r.l.; ;SALDO Fatt.n. P2017/000115  del 05/06/2017 Bolletta Energia Elettrica relativa al periodo 01/03/2017 - 30/04/2017;14-02-2018;1505;0;66;1;Spese correnti;3;Acquisto di beni e servizi;2;Acquisto di servizi;5;Utenze e canoni;4;Energia elettrica;14-02-2018;
120;2;0;"158,51";"1.062,31";ODOARDO ZECCA S.r.l.; ;SALDO Fatt.n. P2017/000241  del 27/12/2017 Bolletta Energia Elettrica relativa al periodo 01/11/2017 - 30/11/2017;14-02-2018;1505;0;66;1;Spese correnti;3;Acquisto di beni e servizi;2;Acquisto di servizi;5;Utenze e canoni;4;Energia elettrica;14-02-2018;
120;3;0;"198,07";"1.062,31";ODOARDO ZECCA S.r.l.; ;SALDO Fatt.n. P2017/000231  del 24/11/2017 Bolletta Energia Elettrica relativa al periodo 01/09/2017 - 31/10/2017;14-02-2018;1505;0;66;1;Spese correnti;3;Acquisto di beni e servizi;2;Acquisto di servizi;5;Utenze e canoni;4;Energia elettrica;14-02-2018;
120;4;0;"230,34";"1.062,31";ODOARDO ZECCA S.r.l.; ;SALDO Fatt.n. P2017/000193  del 27/09/2017 Bolletta Energia Elettrica relativa al periodo 01/07/2017 - 31/08/2017;14-02-2018;1505;0;66;1;Spese correnti;3;Acquisto di beni e servizi;2;Acquisto di servizi;5;Utenze e canoni;4;Energia elettrica;14-02-2018;
120;5;0;"403,80";"1.062,31";ODOARDO ZECCA S.r.l.; ;SALDO Fatt.n. P2017/000240  del 27/12/2017 Bolletta Energia Elettrica relativa al periodo 01/11/2017 - 30/11/2017;14-02-2018;1505;0;66;1;Spese correnti;3;Acquisto di beni e servizi;2;Acquisto di servizi;5;Utenze e canoni;4;Energia elettrica;14-02-2018;
121;1;0;"48,57";"274,08";ODOARDO ZECCA S.r.l.; ;SALDO Fatt.n. P2017/000182  del 27/09/2017 Bolletta Energia Elettrica relativa al periodo 01/07/2017 - 31/08/2017;14-02-2018;1656;0;61;1;Spese correnti;3;Acquisto di beni e servizi;2;Acquisto di servizi;5;Utenze e canoni;4;Energia elettrica;14-02-2018;
121;2;0;"50,81";"274,08";ODOARDO ZECCA S.r.l.; ;SALDO Fatt.n. P2017/000221  del 24/11/2017 Bolletta Energia Elettrica relativa al periodo 01/09/2017 - 31/10/2017;14-02-2018;1656;0;61;1;Spese correnti;3;Acquisto di beni e servizi;2;Acquisto di servizi;5;Utenze e canoni;4;Energia elettrica;14-02-2018;
121;3;0;"85,47";"274,08";ODOARDO ZECCA S.r.l.; ;SALDO Fatt.n. P2017/000170  del 27/09/2017 Bolletta Energia Elettrica relativa al periodo 01/07/2017 - 31/08/2017;14-02-2018;1656;0;61;1;Spese correnti;3;Acquisto di beni e servizi;2;Acquisto di servizi;5;Utenze e canoni;4;Energia elettrica;14-02-2018;
121;4;0;"89,23";"274,08";ODOARDO ZECCA S.r.l.; ;SALDO Fatt.n. P2017/000209  del 24/11/2017 Bolletta Energia Elettrica relativa al periodo 01/09/2017 - 31/10/2017;14-02-2018;1656;0;61;1;Spese correnti;3;Acquisto di beni e servizi;2;Acquisto di servizi;5;Utenze e canoni;4;Energia elettrica;14-02-2018;
122;1;0;"52,67";"1.290,13";ODOARDO ZECCA S.r.l.; ;SALDO Fatt.n. P2017/000197  del 23/10/2017 Bolletta Energia Elettrica relativa al periodo 01/09/2017 - 30/09/2017;14-02-2018;1826;0;60;1;Spese correnti;3;Acquisto di beni e servizi;2;Acquisto di servizi;5;Utenze e canoni;4;Energia elettrica;14-02-2018;
122;2;0;"52,92";"1.290,13";ODOARDO ZECCA S.r.l.; ;SALDO Fatt.n. P2017/000215  del 24/11/2017 Bolletta Energia Elettrica relativa al periodo 01/10/2017 - 31/10/2017;14-02-2018;1826;0;60;1;Spese correnti;3;Acquisto di beni e servizi;2;Acquisto di servizi;5;Utenze e canoni;4;Energia elettrica;14-02-2018;
122;3;0;"57,82";"1.290,13";ODOARDO ZECCA S.r.l.; ;SALDO Fatt.n. P2017/000239  del 27/12/2017 Bolletta Energia Elettrica relativa al periodo 01/11/2017 - 30/11/2017;14-02-2018;1826;0;60;1;Spese correnti;3;Acquisto di beni e servizi;2;Acquisto di servizi;5;Utenze e canoni;4;Energia elettrica;14-02-2018;
122;4;0;"132,19";"1.290,13";ODOARDO ZECCA S.r.l.; ;SALDO Fatt.n. P2017/000171  del 27/09/2017 Bolletta Energia Elettrica relativa al periodo 01/08/2017 - 31/08/2017;14-02-2018;1826;0;60;1;Spese correnti;3;Acquisto di beni e servizi;2;Acquisto di servizi;5;Utenze e canoni;4;Energia elettrica;14-02-2018;
122;5;0;"162,91";"1.290,13";ODOARDO ZECCA S.r.l.; ;SALDO Fatt.n. P2017/000176  del 27/09/2017 Bolletta Energia Elettrica relativa al periodo 01/08/2017 - 31/08/2017;14-02-2018;1826;0;60;1;Spese correnti;3;Acquisto di beni e servizi;2;Acquisto di servizi;5;Utenze e canoni;4;Energia elettrica;14-02-2018;
122;6;0;"219,47";"1.290,13";ODOARDO ZECCA S.r.l.; ;SALDO Fatt.n. P2017/000195  del 23/10/2017 Bolletta Energia Elettrica relativa al periodo 01/09/2017 - 30/09/2017;14-02-2018;1826;0;60;1;Spese correnti;3;Acquisto di beni e servizi;2;Acquisto di servizi;5;Utenze e canoni;4;Energia elettrica;14-02-2018;
122;7;0;"296,60";"1.290,13";ODOARDO ZECCA S.r.l.; ;SALDO Fatt.n. P2017/000210  del 24/11/2017 Bolletta Energia Elettrica relativa al periodo 01/10/2017 - 31/10/2017;14-02-2018;1826;0;60;1;Spese correnti;3;Acquisto di beni e servizi;2;Acquisto di servizi;5;Utenze e canoni;4;Energia elettrica;14-02-2018;
122;8;0;"315,55";"1.290,13";ODOARDO ZECCA S.r.l.; ;SALDO Fatt.n. P2017/000237  del 27/12/2017 Bolletta Energia Elettrica relativa al periodo 01/11/2017 - 30/11/2017;14-02-2018;1826;0;60;1;Spese correnti;3;Acquisto di beni e servizi;2;Acquisto di servizi;5;Utenze e canoni;4;Energia elettrica;14-02-2018;
123;1;0;"166,31";"4.778,24";ODOARDO ZECCA S.r.l.; ;SALDO Fatt.n. P2017/000185  del 27/09/2017 Bolletta Energia Elettrica relativa al periodo 01/07/2017 - 31/08/2017;14-02-2018;1829;0;116;1;Spese correnti;3;Acquisto di beni e servizi;2;Acquisto di servizi;5;Utenze e canoni;4;Energia elettrica;14-02-2018;
123;2;0;"403,10";"4.778,24";ODOARDO ZECCA S.r.l.; ;SALDO Fatt.n. P2017/000224  del 24/11/2017 Bolletta Energia Elettrica relativa al periodo 01/09/2017 - 31/10/2017;14-02-2018;1829;0;116;1;Spese correnti;3;Acquisto di beni e servizi;2;Acquisto di servizi;5;Utenze e canoni;4;Energia elettrica;14-02-2018;
123;3;0;"4.208,83";"4.778,24";ODOARDO ZECCA S.r.l.; ;SALDO Fatt.n. P2017/000122  del 12/07/2017 Bolletta Energia Elettrica relativa al periodo 01/11/2014 - 30/04/2017;14-02-2018;1829;0;116;1;Spese correnti;3;Acquisto di beni e servizi;2;Acquisto di servizi;5;Utenze e canoni;4;Energia elettrica;14-02-2018;
124;1;0;"103,87";"208,99";ODOARDO ZECCA S.r.l.; ;SALDO Fatt.n. P2017/000183  del 27/09/2017 Bolletta Energia Elettrica relativa al periodo 01/07/2017 - 31/08/2017;14-02-2018;1932;0;67;1;Spese correnti;3;Acquisto di beni e servizi;2;Acquisto di servizi;5;Utenze e canoni;4;Energia elettrica;14-02-2018;
124;2;0;"105,12";"208,99";ODOARDO ZECCA S.r.l.; ;SALDO Fatt.n. P2017/000222  del 24/11/2017 Bolletta Energia Elettrica relativa al periodo 01/09/2017 - 31/10/2017;14-02-2018;1932;0;67;1;Spese correnti;3;Acquisto di beni e servizi;2;Acquisto di servizi;5;Utenze e canoni;4;Energia elettrica;14-02-2018;
125;1;0;"36,47";"307,24";ODOARDO ZECCA S.r.l.; ;SALDO Fatt.n. P2017/000165  del 27/09/2017 Bolletta Energia Elettrica relativa al periodo 01/07/2017 - 31/08/2017;14-02-2018;2174;0;269;1;Spese correnti;3;Acquisto di beni e servizi;2;Acquisto di servizi;5;Utenze e canoni;4;Energia elettrica;14-02-2018;
125;2;0;"36,59";"307,24";ODOARDO ZECCA S.r.l.; ;SALDO Fatt.n. P2017/000204  del 24/11/2017 Bolletta Energia Elettrica relativa al periodo 01/09/2017 - 31/10/2017;14-02-2018;2174;0;269;1;Spese correnti;3;Acquisto di beni e servizi;2;Acquisto di servizi;5;Utenze e canoni;4;Energia elettrica;14-02-2018;
125;3;0;"105,80";"307,24";ODOARDO ZECCA S.r.l.; ;SALDO Fatt.n. P2017/000178  del 27/09/2017 Bolletta Energia Elettrica relativa al periodo 01/07/2017 - 31/08/2017;14-02-2018;2174;0;269;1;Spese correnti;3;Acquisto di beni e servizi;2;Acquisto di servizi;5;Utenze e canoni;4;Energia elettrica;14-02-2018;
125;4;0;"128,38";"307,24";ODOARDO ZECCA S.r.l.; ;SALDO Fatt.n. P2017/000217  del 24/11/2017 Bolletta Energia Elettrica relativa al periodo 01/09/2017 - 31/10/2017;14-02-2018;2174;0;269;1;Spese correnti;3;Acquisto di beni e servizi;2;Acquisto di servizi;5;Utenze e canoni;4;Energia elettrica;14-02-2018;
126;1;0;"80,31";"1.818,30";ODOARDO ZECCA S.r.l.; ;SALDO Fatt.n. P2017/000218  del 24/11/2017 Bolletta Energia Elettrica relativa al periodo 01/09/2017 - 31/10/2017;14-02-2018;2124;0;71;1;Spese correnti;3;Acquisto di beni e servizi;2;Acquisto di servizi;5;Utenze e canoni;4;Energia elettrica;14-02-2018;
126;2;0;"80,46";"1.818,30";ODOARDO ZECCA S.r.l.; ;SALDO Fatt.n. P2017/000219  del 24/11/2017 Bolletta Energia Elettrica relativa al periodo 01/09/2017 - 31/10/2017;14-02-2018;2124;0;71;1;Spese correnti;3;Acquisto di beni e servizi;2;Acquisto di servizi;5;Utenze e canoni;4;Energia elettrica;14-02-2018;
126;3;0;"94,40";"1.818,30";ODOARDO ZECCA S.r.l.; ;SALDO Fatt.n. P2017/000174  del 27/09/2017 Bolletta Energia Elettrica relativa al periodo 01/07/2017 - 31/08/2017;14-02-2018;2124;0;71;1;Spese correnti;3;Acquisto di beni e servizi;2;Acquisto di servizi;5;Utenze e canoni;4;Energia elettrica;14-02-2018;
126;4;0;"94,42";"1.818,30";ODOARDO ZECCA S.r.l.; ;SALDO Fatt.n. P2017/000213  del 24/11/2017 Bolletta Energia Elettrica relativa al periodo 01/06/2017 - 31/10/2017;14-02-2018;2124;0;71;1;Spese correnti;3;Acquisto di beni e servizi;2;Acquisto di servizi;5;Utenze e canoni;4;Energia elettrica;14-02-2018;
126;5;0;"105,94";"1.818,30";ODOARDO ZECCA S.r.l.; ;SALDO Fatt.n. P2017/000179  del 27/09/2017 Bolletta Energia Elettrica relativa al periodo 01/07/2017 - 31/08/2017;14-02-2018;2124;0;71;1;Spese correnti;3;Acquisto di beni e servizi;2;Acquisto di servizi;5;Utenze e canoni;4;Energia elettrica;14-02-2018;
126;6;0;"107,40";"1.818,30";ODOARDO ZECCA S.r.l.; ;SALDO Fatt.n. P2017/000223  del 24/11/2017 Bolletta Energia Elettrica relativa al periodo 01/09/2017 - 31/10/2017;14-02-2018;2124;0;71;1;Spese correnti;3;Acquisto di beni e servizi;2;Acquisto di servizi;5;Utenze e canoni;4;Energia elettrica;14-02-2018;
126;7;0;"107,57";"1.818,30";ODOARDO ZECCA S.r.l.; ;SALDO Fatt.n. P2017/000180  del 27/09/2017 Bolletta Energia Elettrica relativa al periodo 01/07/2017 - 31/08/2017;14-02-2018;2124;0;71;1;Spese correnti;3;Acquisto di beni e servizi;2;Acquisto di servizi;5;Utenze e canoni;4;Energia elettrica;14-02-2018;
126;8;0;"120,51";"1.818,30";ODOARDO ZECCA S.r.l.; ;SALDO Fatt.n. P2017/000177  del 27/09/2017 Bolletta Energia Elettrica relativa al periodo 01/07/2017 - 31/08/2017;14-02-2018;2124;0;71;1;Spese correnti;3;Acquisto di beni e servizi;2;Acquisto di servizi;5;Utenze e canoni;4;Energia elettrica;14-02-2018;
126;9;0;"122,31";"1.818,30";ODOARDO ZECCA S.r.l.; ;SALDO Fatt.n. P2017/000216  del 24/11/2017 Bolletta Energia Elettrica relativa al periodo 01/09/2017 - 31/10/2017;14-02-2018;2124;0;71;1;Spese correnti;3;Acquisto di beni e servizi;2;Acquisto di servizi;5;Utenze e canoni;4;Energia elettrica;14-02-2018;
126;10;0;"156,69";"1.818,30";ODOARDO ZECCA S.r.l.; ;SALDO Fatt.n. P2017/000230  del 24/11/2017 Bolletta Energia Elettrica relativa al periodo 01/09/2017 - 31/10/2017;14-02-2018;2124;0;71;1;Spese correnti;3;Acquisto di beni e servizi;2;Acquisto di servizi;5;Utenze e canoni;4;Energia elettrica;14-02-2018;
126;11;0;"298,78";"1.818,30";ODOARDO ZECCA S.r.l.; ;SALDO Fatt.n. P2017/000184  del 27/09/2017 Bolletta Energia Elettrica relativa al periodo 01/07/2017 - 31/08/2017;14-02-2018;2124;0;71;1;Spese correnti;3;Acquisto di beni e servizi;2;Acquisto di servizi;5;Utenze e canoni;4;Energia elettrica;14-02-2018;
126;12;0;"449,51";"1.818,30";ODOARDO ZECCA S.r.l.; ;SALDO Fatt.n. P2017/000191  del 27/09/2017 Bolletta Energia Elettrica relativa al periodo 01/07/2017 - 31/08/2017;14-02-2018;2124;0;71;1;Spese correnti;3;Acquisto di beni e servizi;2;Acquisto di servizi;5;Utenze e canoni;4;Energia elettrica;14-02-2018;
127;1;0;"-100,00";"412,16";ODOARDO ZECCA S.r.l.; ;SALDO Fatt.n. P2017/000096  del 05/06/2017 Bolletta Energia Elettrica relativa al periodo 01/03/2017 - 30/04/2017;14-02-2018;2006;0;65;1;Spese correnti;3;Acquisto di beni e servizi;2;Acquisto di servizi;5;Utenze e canoni;4;Energia elettrica;14-02-2018;
127;2;0;"250,60";"412,16";ODOARDO ZECCA S.r.l.; ;SALDO Fatt.n. P2017/000167  del 27/09/2017 Bolletta Energia Elettrica relativa al periodo 01/07/2017 - 31/08/2017;14-02-2018;2006;0;65;1;Spese correnti;3;Acquisto di beni e servizi;2;Acquisto di servizi;5;Utenze e canoni;4;Energia elettrica;14-02-2018;
127;3;0;"261,56";"412,16";ODOARDO ZECCA S.r.l.; ;SALDO Fatt.n. P2017/000206  del 24/11/2017 Bolletta Energia Elettrica relativa al periodo 01/09/2017 - 31/10/2017;14-02-2018;2006;0;65;1;Spese correnti;3;Acquisto di beni e servizi;2;Acquisto di servizi;5;Utenze e canoni;4;Energia elettrica;14-02-2018;
128;1;0;"42,09";"306,16";ODOARDO ZECCA S.r.l.; ;SALDO Fatt.n. P2016/000277  del 28/09/2016 Bolletta Energia Elettrica relativa al periodo 25/08/2016 - 26/08/2016;14-02-2018;2026;0;63;1;Spese correnti;3;Acquisto di beni e servizi;2;Acquisto di servizi;5;Utenze e canoni;4;Energia elettrica;14-02-2018;
128;2;0;"122,29";"306,16";ODOARDO ZECCA S.r.l.; ;SALDO Fatt.n. P2017/000211  del 24/11/2017 Bolletta Energia Elettrica relativa al periodo 01/09/2017 - 31/10/2017;14-02-2018;2026;0;63;1;Spese correnti;3;Acquisto di beni e servizi;2;Acquisto di servizi;5;Utenze e canoni;4;Energia elettrica;14-02-2018;
128;3;0;"141,78";"306,16";ODOARDO ZECCA S.r.l.; ;SALDO Fatt.n. P2017/000172  del 27/09/2017 Bolletta Energia Elettrica relativa al periodo 01/07/2017 - 31/08/2017;14-02-2018;2026;0;63;1;Spese correnti;3;Acquisto di beni e servizi;2;Acquisto di servizi;5;Utenze e canoni;4;Energia elettrica;14-02-2018;
129;1;0;"270,40";"719,46";ODOARDO ZECCA S.r.l.; ;SALDO Fatt.n. P2017/000205  del 24/11/2017 Bolletta Energia Elettrica relativa al periodo 01/09/2017 - 31/10/2017;14-02-2018;2084;0;62;1;Spese correnti;3;Acquisto di beni e servizi;2;Acquisto di servizi;5;Utenze e canoni;4;Energia elettrica;14-02-2018;
129;2;0;"449,06";"719,46";ODOARDO ZECCA S.r.l.; ;SALDO Fatt.n. P2017/000166  del 27/09/2017 Bolletta Energia Elettrica relativa al periodo 01/07/2017 - 31/08/2017;14-02-2018;2084;0;62;1;Spese correnti;3;Acquisto di beni e servizi;2;Acquisto di servizi;5;Utenze e canoni;4;Energia elettrica;14-02-2018;
130;1;0;"472,56";"472,56";CREDIT NETWORK e FINANCE; ;LIQUIDAZIONE POLIZZE FIDEJUSSORIE PER ATRAVERSAMENTO E FIANCHEGGIAMENTO STRADE -SOCIETA' CATTOLICA DI ASSICURAZIONE SOC. COOP.;15-02-2018;2103;0;317;1;Spese correnti;10;Altre spese correnti;4;Premi di assicurazione;99;Altri premi di assicurazione n.a.c.;999;Altri premi di assicurazione n.a.c.;15-02-2018;
132;1;0;"225,00";"225,00";AUTORITA' VIGILANZA CONTRATTI PUBBLICI.;X19114EF9C;Liquidazione contributo Anac - Gara n. 5839114.;15-02-2018;1059;0;359;1;Spese correnti;3;Acquisto di beni e servizi;2;Acquisto di servizi;16;Servizi amministrativi;1;Pubblicazione bandi di gara;15-02-2018;
133;1;0;"30,00";"1.770,00";AUTORITA' VIGILANZA CONTRATTI PUBBLICI.;X4C114EFA1;Liquidazione contributo ANAC - Gara n. 3333086;15-02-2018;1059;0;367;1;Spese correnti;3;Acquisto di beni e servizi;2;Acquisto di servizi;16;Servizi amministrativi;1;Pubblicazione bandi di gara;15-02-2018;
133;2;0;"30,00";"1.770,00";AUTORITA' VIGILANZA CONTRATTI PUBBLICI.;X4C114EFA1;Liquidazione contributo ANAC - Gara n. 6139326;15-02-2018;1059;0;367;1;Spese correnti;3;Acquisto di beni e servizi;2;Acquisto di servizi;16;Servizi amministrativi;1;Pubblicazione bandi di gara;15-02-2018;
133;3;0;"30,00";"1.770,00";AUTORITA' VIGILANZA CONTRATTI PUBBLICI.;X4C114EFA1;Liquidazione contributo ANAC - Gara n. 4485839;15-02-2018;1059;0;367;1;Spese correnti;3;Acquisto di beni e servizi;2;Acquisto di servizi;16;Servizi amministrativi;1;Pubblicazione bandi di gara;15-02-2018;
133;4;0;"30,00";"1.770,00";AUTORITA' VIGILANZA CONTRATTI PUBBLICI.;X4C114EFA1;Liquidazione contributo ANAC - Gara n. 6514314;15-02-2018;1059;0;367;1;Spese correnti;3;Acquisto di beni e servizi;2;Acquisto di servizi;16;Servizi amministrativi;1;Pubblicazione bandi di gara;15-02-2018;
133;5;0;"225,00";"1.770,00";AUTORITA' VIGILANZA CONTRATTI PUBBLICI.;X4C114EFA1;Liquidazione contributo ANAC - Gara n. 6131446;15-02-2018;1059;0;367;1;Spese correnti;3;Acquisto di beni e servizi;2;Acquisto di servizi;16;Servizi amministrativi;1;Pubblicazione bandi di gara;15-02-2018;
133;6;0;"225,00";"1.770,00";AUTORITA' VIGILANZA CONTRATTI PUBBLICI.;X4C114EFA1;Liquidazione contributo ANAC - Gara n. 5930379;15-02-2018;1059;0;367;1;Spese correnti;3;Acquisto di beni e servizi;2;Acquisto di servizi;16;Servizi amministrativi;1;Pubblicazione bandi di gara;15-02-2018;
133;7;0;"225,00";"1.770,00";AUTORITA' VIGILANZA CONTRATTI PUBBLICI.;X4C114EFA1;Liquidazione contributo ANAC - Gara n. 6494137;15-02-2018;1059;0;367;1;Spese correnti;3;Acquisto di beni e servizi;2;Acquisto di servizi;16;Servizi amministrativi;1;Pubblicazione bandi di gara;15-02-2018;
133;8;0;"375,00";"1.770,00";AUTORITA' VIGILANZA CONTRATTI PUBBLICI.;X4C114EFA1;Liquidazione contributo ANAC - Gara n. 6116398;15-02-2018;1059;0;367;1;Spese correnti;3;Acquisto di beni e servizi;2;Acquisto di servizi;16;Servizi amministrativi;1;Pubblicazione bandi di gara;15-02-2018;
133;9;0;"600,00";"1.770,00";AUTORITA' VIGILANZA CONTRATTI PUBBLICI.;X4C114EFA1;Liquidazione contributo ANAC - Gara n. 5880781;15-02-2018;1059;0;367;1;Spese correnti;3;Acquisto di beni e servizi;2;Acquisto di servizi;16;Servizi amministrativi;1;Pubblicazione bandi di gara;15-02-2018;
134;1;0;"-87,42";"119,73";TELECOM ITALIA S.p.a.;XO4132F1CE;SALDO Fatt.n. 8P00291776  del 06/12/2017 Nota di credito;15-02-2018;1036;0;96;1;Spese correnti;3;Acquisto di beni e servizi;2;Acquisto di servizi;5;Utenze e canoni;1;Telefonia fissa;15-02-2018;
134;2;0;"10,08";"119,73";TELECOM ITALIA S.p.a.;XO4132F1CE;SALDO Fatt.n. 8P00291985  del 06/12/2017 Spese telefoniche 1^ bimestre 2018.;15-02-2018;1036;0;96;1;Spese correnti;3;Acquisto di beni e servizi;2;Acquisto di servizi;5;Utenze e canoni;1;Telefonia fissa;15-02-2018;
134;3;0;"48,87";"119,73";TELECOM ITALIA S.p.a.;XO4132F1CE;SALDO Fatt.n. 8P00290613  del 06/12/2017 Spese telefoniche 1^ bimestre 2018;15-02-2018;1036;0;96;1;Spese correnti;3;Acquisto di beni e servizi;2;Acquisto di servizi;5;Utenze e canoni;1;Telefonia fissa;15-02-2018;
134;4;0;"148,20";"119,73";TELECOM ITALIA S.p.a.;XO4132F1CE;SALDO Fatt.n. 4220718800052509  del 06/12/2017 Spese telefoniche 1^ bimestre 2018;15-02-2018;1036;0;96;1;Spese correnti;3;Acquisto di beni e servizi;2;Acquisto di servizi;5;Utenze e canoni;1;Telefonia fissa;15-02-2018;
135;1;0;"292,86";"1.210,52";ENEL ENERGIA S.p.A.; ;SALDO Fatt.n. 004801779490  del 06/12/2017 Fornitura energia elettrica - Novembre 2017;15-02-2018;1057;1;9;1;Spese correnti;3;Acquisto di beni e servizi;2;Acquisto di servizi;5;Utenze e canoni;4;Energia elettrica;15-02-2018;
135;2;0;"294,92";"1.210,52";ENEL ENERGIA S.p.A.; ;SALDO Fatt.n. 004801779491  del 06/12/2017 Fornitura energia elettrica - Novembre 2017;15-02-2018;1057;1;9;1;Spese correnti;3;Acquisto di beni e servizi;2;Acquisto di servizi;5;Utenze e canoni;4;Energia elettrica;15-02-2018;
135;3;0;"307,55";"1.210,52";ENEL ENERGIA S.p.A.; ;SALDO Fatt.n. 004810096087  del 10/01/2018 Fornitura energia elettrica - Dicembre 2017;15-02-2018;1057;1;9;1;Spese correnti;3;Acquisto di beni e servizi;2;Acquisto di servizi;5;Utenze e canoni;4;Energia elettrica;15-02-2018;
135;4;0;"315,19";"1.210,52";ENEL ENERGIA S.p.A.; ;SALDO Fatt.n. 004810096088  del 10/01/2018 Fornitura energia elettrica dicembre 2017;15-02-2018;1057;1;9;1;Spese correnti;3;Acquisto di beni e servizi;2;Acquisto di servizi;5;Utenze e canoni;4;Energia elettrica;15-02-2018;
136;1;0;"6.023,95";"6.023,95";DIPENDENTI COMUNALI; ;STIPENDI MESE DI: FEBBRAIO 18;16-02-2018;1001;0;0;1;Spese correnti;3;Acquisto di beni e servizi;2;Acquisto di servizi;1;Organi e incarichi istituzionali dell'amministrazione;1;Organi istituzionali dell'amministrazione - Indennit�;16-02-2018;
148;1;0;"2.500,00";"2.500,00";DIPENDENTI COMUNALI; ;STIPENDI MESE DI: FEBBRAIO 18;16-02-2018;1068;0;2;1;Spese correnti;4;Trasferimenti correnti;1;Trasferimenti correnti a Amministrazioni Pubbliche;2;Trasferimenti correnti a Amministrazioni Locali;999;Trasferimenti correnti a altre Amministrazioni Locali n.a.c.;16-02-2018;
149;1;0;"212,50";"212,50";AGENZIA DELLE ENTRATE - IRAP; ;VERS. IMPOSTE MESE: FEBBRAIO 18 PER I.R.A.P.;16-02-2018;1068;0;2;1;Spese correnti;4;Trasferimenti correnti;1;Trasferimenti correnti a Amministrazioni Pubbliche;2;Trasferimenti correnti a Amministrazioni Locali;999;Trasferimenti correnti a altre Amministrazioni Locali n.a.c.;16-02-2018;
154;1;0;"43,60";"43,60";DIPENDENTI COMUNALI; ;STIPENDI MESE DI: FEBBRAIO 18;16-02-2018;1073;0;0;1;Spese correnti;3;Acquisto di beni e servizi;2;Acquisto di servizi;2;"Organizzazione eventi, pubblicita` e servizi per trasferta";2;Indennit� di missione e di trasferta;16-02-2018;
183;1;0;"15.503,12";"15.503,12";AGENZIA DELLE ENTRATE - IVA; ;AGENZIA DELLE ENTRATE-(DG) - Canale :I24  Dt.conf.: 16/02/2018  Dt.pag.: 16/02/2018  Dt.appl.:15/02/2018 Mitt.SI (P.      30 -R.     182);19-02-2018;2154;0;99999;1;Spese correnti;10;Altre spese correnti;3;Versamenti IVA a debito;1;Versamenti IVA a debito per le gestioni commerciali;1;Versamenti IVA a debito per le gestioni commerciali;19-02-2018;
185;1;0;"6.000,00";"6.000,00";MEADE Harry Guido; ;Liquidazione canone affitto terreno per impainto fotovoltaico anno 2017.;19-02-2018;2164;0;314;1;Spese correnti;3;Acquisto di beni e servizi;2;Acquisto di servizi;7;Utilizzo di beni di terzi;5;Fitti di terreni e giacimenti;19-02-2018;
186;1;0;"6.000,00";"6.000,00";MEADE Guido Felim; ;Liquidazione canone affitto terreno impainto fotovoltaico anno 2017.;19-02-2018;2164;0;315;1;Spese correnti;3;Acquisto di beni e servizi;2;Acquisto di servizi;7;Utilizzo di beni di terzi;5;Fitti di terreni e giacimenti;19-02-2018;
187;1;0;"391,82";"391,82";MUCCI Antonio;ZDB2001CA3;SALDO Fatt.n. 73/PA  del 31/10/2017 Prestazionida elettricista per pompe sollevamento;19-02-2018;2109;0;226;1;Spese correnti;3;Acquisto di beni e servizi;1;Acquisto di beni;2;Altri beni di consumo;7;Altri materiali tecnico-specialistici non sanitari;19-02-2018;
188;1;0;"1.159,00";"1.159,00";MUCCI Antonio;Z2B21881D9;SALDO Fatt.n. 83  del 30/11/2017 Prestazioni da elettricista;19-02-2018;2171;0;320;1;Spese correnti;3;Acquisto di beni e servizi;2;Acquisto di servizi;9;Manutenzione ordinaria e riparazioni;8;Manutenzione ordinaria e riparazioni di beni immobili;19-02-2018;
189;1;0;"2.188,68";"2.188,68";MUCCI Antonio;Z592177BB7;SALDO Fatt.n. 88  del 29/12/2017 Prestazioni da elettricista miniafestazioni natalizie.;19-02-2018;2091;0;306;1;Spese correnti;3;Acquisto di beni e servizi;2;Acquisto di servizi;11;Prestazioni professionali e specialistiche;999;Altre prestazioni professionali e specialistiche n.a.c.;19-02-2018;
190;1;0;"1.159,00";"1.159,00";OTTIMA S.r.l.; ;SALDO Fatt.n. FATTPA 7_18  del 31/01/2018 Prestazione da elettricista;19-02-2018;2014;0;307;1;Spese correnti;3;Acquisto di beni e servizi;2;Acquisto di servizi;5;Utenze e canoni;4;Energia elettrica;19-02-2018;
191;1;0;"1.000,00";"1.000,00";LUMINAR SERVICE DI ALTOBELLI VALERIANO; ;SALDO Fatt.n. 0000007  del 18/01/2018 Creazione di n. 3 alberi natalizi a led;20-02-2018;2102;0;308;1;Spese correnti;3;Acquisto di beni e servizi;1;Acquisto di beni;2;Altri beni di consumo;999;Altri beni e materiali di consumo n.a.c.;20-02-2018;
193;1;0;"25.000,00";"25.000,00";MEDIASS GPA S.p.A.;ZEB21DA180;Liquidazione spesa del servizio di copertura assicurativa dei rischi di Responsabilita Civile verso terzi ed operatori - ASSIB- AIG .;22-02-2018;1104;0;8;1;Spese correnti;10;Altre spese correnti;4;Premi di assicurazione;1;Premi di assicurazione contro i danni;3;Premi di assicurazione per responsabilit� civile verso terzi;22-02-2018;
195;1;0;"485,11";"485,11";ENI S.p.A. Divisione Gas & Power; ;ADDEBITO DIRETTO SDD B2B DA EN-ADDEBITO DIRETTO SDD B2B DA ENI S.P.A. PER 003006398301117 1400249004269-1302187581 (COD.P (P.      40 -R.     246);03-03-2018;1270;0;19;1;Spese correnti;3;Acquisto di beni e servizi;1;Acquisto di beni;2;Altri beni di consumo;2;"Carburanti, combustibili e lubrificanti";03-03-2018;
197;1;0;"8.439,89";"16.879,78";CONSORZIO COOPERATIVE SOCIALI S.G.S.;649009322C;SALDO Fatt.n. 1155/10  del 10/10/2017 Gestione asilo nido - Settembre 2017;03-03-2018;1421;0;252;1;Spese correnti;3;Acquisto di beni e servizi;2;Acquisto di servizi;15;Contratti di servizio pubblico;10;Contratti di servizio di asilo nido;03-03-2018;
197;2;0;"8.439,89";"16.879,78";CONSORZIO COOPERATIVE SOCIALI S.G.S.;649009322C;SALDO Fatt.n. 1265/10  del 06/11/2017 Servizio assistenza educativa Asilo Nido - ottobre 2017;03-03-2018;1421;0;252;1;Spese correnti;3;Acquisto di beni e servizi;2;Acquisto di servizi;15;Contratti di servizio pubblico;10;Contratti di servizio di asilo nido;03-03-2018;
198;1;0;"106,72";"106,72";ENI S.p.A. Divisione Gas & Power; ;SALDO Fatt.n. 30063980  del 30/11/2017 Fornitura buoni carburante -Novembre 2017;03-03-2018;1657;0;20;1;Spese correnti;3;Acquisto di beni e servizi;1;Acquisto di beni;2;Altri beni di consumo;2;"Carburanti, combustibili e lubrificanti";03-03-2018;
199;1;0;"8.439,89";"16.879,78";CONSORZIO COOPERATIVE SOCIALI S.G.S.;649009322C;SALDO Fatt.n. 1382/10  del 07/12/2017 Gestione asilo nido - Novembre 2017;03-03-2018;1421;0;252;1;Spese correnti;3;Acquisto di beni e servizi;2;Acquisto di servizi;15;Contratti di servizio pubblico;10;Contratti di servizio di asilo nido;03-03-2018;
199;2;0;"8.439,89";"16.879,78";CONSORZIO COOPERATIVE SOCIALI S.G.S.;649009322C;SALDO Fatt.n. 1528/10  del 31/12/2017 Gestione asilo nido - Dicembre 2017;03-03-2018;1421;0;252;1;Spese correnti;3;Acquisto di beni e servizi;2;Acquisto di servizi;15;Contratti di servizio pubblico;10;Contratti di servizio di asilo nido;03-03-2018;
201;1;0;"1.499,99";"1.499,99";BIANCHI Simona; ;SALDO Fatt.n. 09  del 23/11/2017 Compenso Revisore Unico dal 01/10/2017 al 31/12/2017;05-03-2018;1011;0;238;1;Spese correnti;3;Acquisto di beni e servizi;2;Acquisto di servizi;1;Organi e incarichi istituzionali dell'amministrazione;1;Organi istituzionali dell'amministrazione - Indennit�;05-03-2018;
203;1;0;"-2.000,00";"18.010,09";CONSORZIO COOPERATIVE SOCIALI S.G.S.;649009322C;SALDO Fatt.n. 878/10  del 27/07/2017 Nota dic redito su fatturazione settembre/dicembre 2016.;07-03-2018;1425;0;17;1;Spese correnti;3;Acquisto di beni e servizi;2;Acquisto di servizi;15;Contratti di servizio pubblico;10;Contratti di servizio di asilo nido;07-03-2018;
203;2;0;"-95,80";"18.010,09";CONSORZIO COOPERATIVE SOCIALI S.G.S.;649009322C;SALDO Fatt.n. 147/10  del 05/03/2018 Nota di credito periodo : Setembre -Dicembre 2016.;07-03-2018;1425;0;17;1;Spese correnti;3;Acquisto di beni e servizi;2;Acquisto di servizi;15;Contratti di servizio pubblico;10;Contratti di servizio di asilo nido;07-03-2018;
203;3;0;"3.071,12";"18.010,09";CONSORZIO COOPERATIVE SOCIALI S.G.S.;649009322C;ACCONTO Fatt.n. 31/10  del 26/01/2017 Gestione asilo nido - Novembre 2016;07-03-2018;1425;0;17;1;Spese correnti;3;Acquisto di beni e servizi;2;Acquisto di servizi;15;Contratti di servizio pubblico;10;Contratti di servizio di asilo nido;07-03-2018;
203;4;0;"3.444,79";"18.010,09";CONSORZIO COOPERATIVE SOCIALI S.G.S.;649009322C;SALDO Fatt.n. 1000/10  del 11/11/2016 Servizio gestione asilo nido.;07-03-2018;1425;0;17;1;Spese correnti;3;Acquisto di beni e servizi;2;Acquisto di servizi;15;Contratti di servizio pubblico;10;Contratti di servizio di asilo nido;07-03-2018;
203;5;0;"4.150,09";"18.010,09";CONSORZIO COOPERATIVE SOCIALI S.G.S.; ;SALDO Fatt.n. 864/10  del 06/10/2016 Gestione asilio nido - Settembre 2016.;07-03-2018;1425;0;17;1;Spese correnti;3;Acquisto di beni e servizi;2;Acquisto di servizi;15;Contratti di servizio pubblico;10;Contratti di servizio di asilo nido;07-03-2018;
203;6;0;"9.439,89";"18.010,09";CONSORZIO COOPERATIVE SOCIALI S.G.S.;649009322C;SALDO Fatt.n. 32/10  del 26/01/2017 Assistenza educativa nido d'infanzia - Dicembre 2016;07-03-2018;1425;0;17;1;Spese correnti;3;Acquisto di beni e servizi;2;Acquisto di servizi;15;Contratti di servizio pubblico;10;Contratti di servizio di asilo nido;07-03-2018;
204;1;0;"21,02";"21,02";CONSORZIO COOPERATIVE SOCIALI S.G.S.;649009322C;SALDO Fatt.n. 31/10  del 26/01/2017 Gestione asilo nido - Novembre 2016;07-03-2018;1421;0;295;1;Spese correnti;3;Acquisto di beni e servizi;2;Acquisto di servizi;15;Contratti di servizio pubblico;10;Contratti di servizio di asilo nido;07-03-2018;
205;1;0;"14.196,34";"14.196,34";GECABUS SRLS;6337728A96;SALDO Fatt.n. 5/2018/PA  del 31/01/2018 Servizio trasporto scolastico - Gennaio 2018.;07-03-2018;1424;0;190;1;Spese correnti;3;Acquisto di beni e servizi;2;Acquisto di servizi;15;Contratti di servizio pubblico;2;Contratti di servizio di trasporto scolastico;07-03-2018;
207;1;0;"1.767,37";"1.767,37";RIECO S.P.A.; ;Liquidazione spesa ricorso giurisdizionale RIECO SPA Sentenza TAR Abruzzo Sez. di Pescara n. 189/2017.;07-03-2018;1058;0;50;1;Spese correnti;3;Acquisto di beni e servizi;2;Acquisto di servizi;99;Altri servizi;2;Altre spese legali;07-03-2018;
208;1;0;"2.518,97";"5.458,13";VODAFONE Omnitel B.V.; ;SALDO Fatt.n. AH19045750  del 25/10/2017 Spese telefoniche 25.08.2017/19.10.2017.;08-03-2018;1036;0;95;1;Spese correnti;3;Acquisto di beni e servizi;2;Acquisto di servizi;5;Utenze e canoni;1;Telefonia fissa;08-03-2018;
208;2;0;"2.939,16";"5.458,13";VODAFONE Omnitel B.V.; ;SALDO Fatt.n. AH22794432  del 20/12/2017 Spese telefoniche 6^ bimestre 2017;08-03-2018;1036;0;95;1;Spese correnti;3;Acquisto di beni e servizi;2;Acquisto di servizi;5;Utenze e canoni;1;Telefonia fissa;08-03-2018;
216;1;0;"899,99";"899,99";AIMOLA GIOVANNI;ZDF1F91498;SALDO Fatt.n. FATTPA 2_17  del 29/09/2017 Noleggio attrezzatura audio/luci per 3 eventi estivi;12-03-2018;2090;0;169;1;Spese correnti;3;Acquisto di beni e servizi;2;Acquisto di servizi;7;Utilizzo di beni di terzi;8;Noleggi di impianti e macchinari;12-03-2018;
217;1;0;"246,92";"2.429,84";CROCE AZZURRA LANCIANO;Z961FD58C5;ACCONTO Fatt.n. 70/17/PA  del 30/10/2017 Servizio Trasporto Disabili Settembre 2017;12-03-2018;1362;0;271;1;Spese correnti;3;Acquisto di beni e servizi;2;Acquisto di servizi;11;Prestazioni professionali e specialistiche;2;"Assistenza psicologica, sociale e religiosa";12-03-2018;
217;2;0;"2.182,92";"2.429,84";CROCE AZZURRA LANCIANO;Z961FD58C5;SALDO Fatt.n. 3/18/PA  del 31/01/2018 Servizio Trasporto Disabili Gennaio 2018;12-03-2018;1362;0;271;1;Spese correnti;3;Acquisto di beni e servizi;2;Acquisto di servizi;11;Prestazioni professionali e specialistiche;2;"Assistenza psicologica, sociale e religiosa";12-03-2018;
218;1;0;"1.503,20";"1.503,20";CROCE AZZURRA LANCIANO;Z961FD58C5;SALDO Fatt.n. 70/17/PA  del 30/10/2017 Servizio Trasporto Disabili Settembre 2017;12-03-2018;1028;0;271;1;Spese correnti;3;Acquisto di beni e servizi;2;Acquisto di servizi;15;Contratti di servizio pubblico;3;Contratti di servizio per il trasporto di disabili e anziani;12-03-2018;
219;1;0;"51,65";"51,65";CREDIT NETWORK e FINANCE; ;POLIZZA FIDEJUSSORIA PER ATRAVERSAMENTO E FIANCHEGGIAMENTO STRADE;12-03-2018;2103;0;317;1;Spese correnti;10;Altre spese correnti;4;Premi di assicurazione;99;Altri premi di assicurazione n.a.c.;999;Altri premi di assicurazione n.a.c.;12-03-2018;
220;1;0;"583,33";"583,33";IT CREATIVE di D'ANGELO FRANCESCO;Z221E2C663;SALDO Fatt.n. 25/A  del 22/12/2017 GESTIONE DEI SERVIZI RELATIVI ALLA TRASPARENZA DELL'AZIONE AMMINISTRATIVA DELL'ENTE - BIMESTRE NOVEMBRE/DICEMBRE 2017;12-03-2018;1062;0;17;1;Spese correnti;3;Acquisto di beni e servizi;2;Acquisto di servizi;19;Servizi informatici e di telecomunicazioni;1;Gestione e manutenzione applicazioni;12-03-2018;
221;1;0;"366,00";"366,00";SEBACH S.r.l.;Z3A20EC98A;SALDO Fatt.n. V17157757  del 30/11/2017 Locazione bagni chimici centro storico;12-03-2018;2090;0;257;1;Spese correnti;3;Acquisto di beni e servizi;2;Acquisto di servizi;7;Utilizzo di beni di terzi;8;Noleggi di impianti e macchinari;12-03-2018;
222;1;0;"963,80";"963,80";BOLEH di CENCI Marco;Z7F1F2F19;SALDO Fatt.n. 380  del 11/09/2017 Fornitrua segnaletica in varie misure.;12-03-2018;2089;0;131;1;Spese correnti;3;Acquisto di beni e servizi;1;Acquisto di beni;2;Altri beni di consumo;999;Altri beni e materiali di consumo n.a.c.;12-03-2018;
223;1;0;"1.200,79";"2.401,65";TELECONTROL SERVICE SOC. COOP;XBC18983E9;"ACCONTO Fatt.n. 18/17  del 04/12/2017 Servizio di gestione, manutenzione e riqualificazione energetica - Novembre 2017";12-03-2018;1939;0;175;1;Spese correnti;3;Acquisto di beni e servizi;2;Acquisto di servizi;15;Contratti di servizio pubblico;15;Contratti di servizio per l'illuminazione pubblica;12-03-2018;
223;2;0;"1.200,86";"2.401,65";TELECONTROL SERVICE SOC. COOP;XBC18983E9;"SALDO Fatt.n. 01/18  del 03/01/2018 Servizio di gestione, manutenzione e riqualificazione energetica - Dicembre 2017";12-03-2018;1939;0;175;1;Spese correnti;3;Acquisto di beni e servizi;2;Acquisto di servizi;15;Contratti di servizio pubblico;15;Contratti di servizio per l'illuminazione pubblica;12-03-2018;
224;1;0;"-42,70";"384,30";GRAFICHE E. GASPARI S.r.l.;Z5D1E8E564;SALDO Fatt.n. 00026  del 31/01/2018 Nota accredito riferita a ns. fattura nr. 2017/005790;12-03-2018;1191;0;45;1;Spese correnti;3;Acquisto di beni e servizi;2;Acquisto di servizi;16;Servizi amministrativi;999;Altre spese per servizi amministrativi;12-03-2018;
224;2;0;"427,00";"384,30";GRAFICHE E. GASPARI S.r.l.;Z5D1E8E564;SALDO Fatt.n. 05790  del 19/05/2017 Fornitura programma IUC;12-03-2018;1191;0;45;1;Spese correnti;3;Acquisto di beni e servizi;2;Acquisto di servizi;16;Servizi amministrativi;999;Altre spese per servizi amministrativi;12-03-2018;
225;1;0;"873,60";"7.783,78";COOPERATIVA PRIMAVERA Soc. Coop.;6355628E21;SALDO Fatt.n. 7/PA  del 02/02/2018 Fattura per gestione servizio mensa c/o nido S.Vito Paese mese gennaio 2018;12-03-2018;1422;0;189;1;Spese correnti;3;Acquisto di beni e servizi;2;Acquisto di servizi;15;Contratti di servizio pubblico;6;Contratti di servizio per le mense scolastiche;12-03-2018;
225;2;0;"2.598,96";"7.783,78";COOPERATIVA PRIMAVERA Soc. Coop.;6355628E21;SALDO Fatt.n. 8/PA  del 02/02/2018 Fattura per gestione servizio mensa c/o scuola materna S.Apollinare mese gennaio 2018;12-03-2018;1422;0;189;1;Spese correnti;3;Acquisto di beni e servizi;2;Acquisto di servizi;15;Contratti di servizio pubblico;6;Contratti di servizio per le mense scolastiche;12-03-2018;
225;3;0;"4.311,22";"7.783,78";COOPERATIVA PRIMAVERA Soc. Coop.;6355628E21;SALDO Fatt.n. 6/PA  del 02/02/2018 Fattura per gestione servizio mensa c/o scuola materna S.vito Paese mese di GENNAIO 2018;12-03-2018;1422;0;189;1;Spese correnti;3;Acquisto di beni e servizi;2;Acquisto di servizi;15;Contratti di servizio pubblico;6;Contratti di servizio per le mense scolastiche;12-03-2018;
226;1;0;"1.153,69";"1.153,69";IEZZI Gabriele;Z551C1114D;SALDO Fatt.n. 111/2016  del 17/12/2016 Prestazione da meccanico.;12-03-2018;1928;0;151;1;Spese correnti;3;Acquisto di beni e servizi;1;Acquisto di beni;2;Altri beni di consumo;999;Altri beni e materiali di consumo n.a.c.;12-03-2018;
227;1;0;"536,60";"536,60";IEZZI Gabriele;Z791F26F71;ACCONTO Fatt.n. 84  del 07/12/2017 Prestazioni da meccanico.;12-03-2018;1811;0;128;1;Spese correnti;3;Acquisto di beni e servizi;1;Acquisto di beni;2;Altri beni di consumo;999;Altri beni e materiali di consumo n.a.c.;12-03-2018;
228;1;0;"976,00";"976,00";IEZZI Gabriele;Z371FA2306;SALDO Fatt.n. 83  del 07/12/2017 Prestazioni da meccanico;12-03-2018;1927;0;196;1;Spese correnti;3;Acquisto di beni e servizi;2;Acquisto di servizi;9;Manutenzione ordinaria e riparazioni;2;Manutenzione ordinaria e riparazioni di mezzi di trasporto ad uso militare;12-03-2018;
231;1;0;"1.098,00";"1.098,00";IEZZI Gabriele;Z681CDA65C;SALDO Fatt.n. 85  del 07/12/2017 Prestazioni da meccanico.;12-03-2018;2170;0;245;1;Spese correnti;3;Acquisto di beni e servizi;1;Acquisto di beni;2;Altri beni di consumo;999;Altri beni e materiali di consumo n.a.c.;12-03-2018;
232;1;0;"3.500,00";"3.500,00";DI MELE Luigi; ;LIQUIDAZIONE FITTO LOCALE AD USO DELEGAZIONE;12-03-2018;1004;0;330;1;Spese correnti;3;Acquisto di beni e servizi;2;Acquisto di servizi;7;Utilizzo di beni di terzi;1;Locazione di beni immobili;12-03-2018;
233;1;0;"1.952,00";"1.952,00";A.I.D.A. Cooperativa Sociale a r.l.;ZBB1FA234E;SALDO Fatt.n. 18/PA  del 04/12/2017 LAVORI DI MANUTENZIONE AREE VERDI IN LOCALITA MARINA;12-03-2018;1812;0;194;1;Spese correnti;3;Acquisto di beni e servizi;2;Acquisto di servizi;9;Manutenzione ordinaria e riparazioni;12;Manutenzione ordinaria e riparazioni di terreni e beni materiali non prodotti;12-03-2018;
234;1;0;"957,29";"59.670,08";ECO.LAN. S.p.A.; ;SALDO Fatt.n. 100616  del 30/06/2017 Servizxio igiene urbana - affidamento in House servizio gestione ciclo integr. rif. urb.;12-03-2018;1745;0;47;1;Spese correnti;3;Acquisto di beni e servizi;2;Acquisto di servizi;15;Contratti di servizio pubblico;4;Contratti di servizio per la raccolta rifiuti;12-03-2018;
234;2;0;"58.712,79";"59.670,08";ECO.LAN. S.p.A.; ;SALDO Fatt.n. 101041  del 30/11/2017 Servizio igiene urbana - Novembre 2017;12-03-2018;1745;0;47;1;Spese correnti;3;Acquisto di beni e servizi;2;Acquisto di servizi;15;Contratti di servizio pubblico;4;Contratti di servizio per la raccolta rifiuti;12-03-2018;
235;1;0;"66,88";"66,88";TOP SERVICE CERRONE S.r.l.;ZZ62001AE8;SALDO Fatt.n. 132/PA  del 29/11/2017 FATTURA ELETTR. REVISIONI;12-03-2018;1927;0;301;1;Spese correnti;3;Acquisto di beni e servizi;2;Acquisto di servizi;9;Manutenzione ordinaria e riparazioni;2;Manutenzione ordinaria e riparazioni di mezzi di trasporto ad uso militare;12-03-2018;
236;1;0;"515,00";"515,00";TOP SERVICE CERRONE S.r.l.;ZZ62001AE8;SALDO Fatt.n. 131  del 29/11/2017 Spese passaggio di proprieta' e duplicato carta di circolazione;12-03-2018;1927;0;221;1;Spese correnti;3;Acquisto di beni e servizi;2;Acquisto di servizi;9;Manutenzione ordinaria e riparazioni;2;Manutenzione ordinaria e riparazioni di mezzi di trasporto ad uso militare;12-03-2018;
237;1;0;"187,88";"187,88";DECART S.r.l.;Z332097CA5;SALDO Fatt.n. 636/PA  del 27/11/2017 Fornitura buste intestate con finestra e senza finestre.;12-03-2018;1191;0;244;1;Spese correnti;3;Acquisto di beni e servizi;2;Acquisto di servizi;16;Servizi amministrativi;999;Altre spese per servizi amministrativi;12-03-2018;
238;1;0;"366,00";"366,00";SHARP ELECTRONICS S.p.A.;ZB71D73E28;"SALDO Fatt.n. 7717024962  del 22/12/2017 COMUNE SAN VITO CHIETINO, ORDINE 3519132, CIG zb71d73e28 COMPETENZA 14/09/2017 al 13/12/2017 NUM.RATA    19";12-03-2018;1053;0;7;1;Spese correnti;3;Acquisto di beni e servizi;2;Acquisto di servizi;19;Servizi informatici e di telecomunicazioni;7;Servizi di gestione documentale;12-03-2018;
239;1;0;"304,60";"304,60";KYOCERA DOCUMENT SOLUTIONS ITALIA S.P.A:;ZB00FAAFFA;SALDO Fatt.n. 1010460868  del 18/01/2018 Fotocopiatrici 23 - Lotto 1 - CIG 5462214994 - Durata del contratto 48 mesi;12-03-2018;1369;0;56;1;Spese correnti;3;Acquisto di beni e servizi;2;Acquisto di servizi;7;Utilizzo di beni di terzi;8;Noleggi di impianti e macchinari;12-03-2018;
240;1;0;"286,03";"286,03";KYOCERA DOCUMENT SOLUTIONS ITALIA S.P.A:;Z5410BC1A4;SALDO Fatt.n. 1010460957  del 18/01/2018 Fotocopiatrici 23 - Lotto 1 - CIG 5462214994 - Durata del contratto 60 mesi;12-03-2018;1053;0;57;1;Spese correnti;3;Acquisto di beni e servizi;2;Acquisto di servizi;19;Servizi informatici e di telecomunicazioni;1;Gestione e manutenzione applicazioni;12-03-2018;
241;1;0;"2.723,78";"2.723,78";CONSORZIO COOPERATIVE SOCIALI S.G.S.;Z6D1FD5C6D;SALDO Fatt.n. 1471/10  del 21/12/2017 Assistenza alunni diversamente abili con operatore - Novembre 2017.;12-03-2018;1362;0;272;1;Spese correnti;3;Acquisto di beni e servizi;2;Acquisto di servizi;11;Prestazioni professionali e specialistiche;2;"Assistenza psicologica, sociale e religiosa";12-03-2018;
242;1;0;"3.012,73";"3.012,73";POSTE ITALIANE S.p.A.; ;ACCONTO Fatt.n. 8717386099  del 14/12/2017 Fattura Elettronica relativa all'Identificativo Rendiconto 2094842320;12-03-2018;1036;0;92;1;Spese correnti;3;Acquisto di beni e servizi;2;Acquisto di servizi;5;Utenze e canoni;999;Utenze e canoni per altri servizi n.a.c.;12-03-2018;
243;1;0;"1.200,86";"1.200,86";TELECONTROL SERVICE SOC. COOP;XBC18983E9;"SALDO Fatt.n. 17/17  del 06/11/2017 Servizio di gestione, manutenzione e riqualificazione impianti elettrici - Ottobre 2017";12-03-2018;1939;0;175;1;Spese correnti;3;Acquisto di beni e servizi;2;Acquisto di servizi;15;Contratti di servizio pubblico;15;Contratti di servizio per l'illuminazione pubblica;12-03-2018;
244;1;0;"1.767,78";"1.767,78";S.I.A.C. S.r.l.;ZCD1F261CE;SALDO Fatt.n. FATTPA 318_17  del 30/11/2017 Servizio custodia cani randagi mese di novembre 2017;12-03-2018;1622;0;125;1;Spese correnti;3;Acquisto di beni e servizi;2;Acquisto di servizi;15;Contratti di servizio pubblico;11;Contratti di servizio per la lotta al randagismo;12-03-2018;
245;1;0;"15.884,40";"15.884,40";HALLEY INFORMATICA S.R.L.;Z161F2EBC0;SALDO Fatt.n. 13012/8/10  del 31/10/2017 SERVIZI FULL SERVICE E WHITE BOX ANNO 2017;12-03-2018;1053;0;130;1;Spese correnti;3;Acquisto di beni e servizi;2;Acquisto di servizi;19;Servizi informatici e di telecomunicazioni;1;Gestione e manutenzione applicazioni;12-03-2018;
246;1;0;"1.000,00";"1.000,00";MEDIASS GPA S.p.A.; ;MEDIASS GPA-COPERTURA POLIZZE ASSICURATIVE SCADENZA 25022018 (P.      38 -R.     244);13-03-2018;1101;0;99999;1;Spese correnti;10;Altre spese correnti;4;Premi di assicurazione;99;Altri premi di assicurazione n.a.c.;999;Altri premi di assicurazione n.a.c.;13-03-2018;
247;1;0;"1.000,00";"1.000,00";MEDIASS GPA S.p.A.; ;MEDIASS GPA-COPERTURA POLIZZE ASSICURATIVE SCADENZA 25022018 (P.      38 -R.     244);13-03-2018;1102;0;99999;1;Spese correnti;10;Altre spese correnti;4;Premi di assicurazione;99;Altri premi di assicurazione n.a.c.;999;Altri premi di assicurazione n.a.c.;13-03-2018;
248;1;0;"3.290,90";"3.290,90";MEDIASS GPA S.p.A.; ;MEDIASS GPA-COPERTURA POLIZZE ASSICURATIVE SCADENZA 25022018 (P.      38 -R.     244);13-03-2018;1103;0;99999;1;Spese correnti;10;Altre spese correnti;4;Premi di assicurazione;1;Premi di assicurazione contro i danni;999;Altri premi di assicurazione contro i danni;13-03-2018;
249;1;0;"1.900,00";"1.900,00";MEDIASS GPA S.p.A.; ;MEDIASS GPA-COPERTURA POLIZZE ASSICURATIVE SCADENZA 25022018 (P.      38 -R.     244);13-03-2018;1105;0;99999;1;Spese correnti;10;Altre spese correnti;4;Premi di assicurazione;99;Altri premi di assicurazione n.a.c.;999;Altri premi di assicurazione n.a.c.;13-03-2018;
250;1;0;"1.000,00";"1.000,00";MEDIASS GPA S.p.A.; ;MEDIASS GPA-COPERTURA POLIZZE ASSICURATIVE SCADENZA 25022018 (P.      38 -R.     244);13-03-2018;1106;0;99999;1;Spese correnti;10;Altre spese correnti;4;Premi di assicurazione;99;Altri premi di assicurazione n.a.c.;999;Altri premi di assicurazione n.a.c.;13-03-2018;
251;1;0;"2.002,00";"2.002,00";MEDIASS GPA S.p.A.; ;MEDIASS GPA-COPERTURA POLIZZE ASSICURATIVE SCADENZA 25022018 Liquidazione spesa rinnovo assicurazioni (P.      38 -R.     244);13-03-2018;1431;0;99999;1;Spese correnti;10;Altre spese correnti;4;Premi di assicurazione;99;Altri premi di assicurazione n.a.c.;999;Altri premi di assicurazione n.a.c.;13-03-2018;
252;1;0;"3.326,18";"3.326,18";MEDIASS GPA S.p.A.; ;MEDIASS GPA-COPERTURA POLIZZE ASSICURATIVE SCADENZA 25022018 (P.      38 -R.     244);13-03-2018;1431;0;212;1;Spese correnti;10;Altre spese correnti;4;Premi di assicurazione;99;Altri premi di assicurazione n.a.c.;999;Altri premi di assicurazione n.a.c.;13-03-2018;
254;1;0;"1.088,53";"1.088,53";MEDIASS GPA S.p.A.; ;Liquidazione spesa polizza ILIE000193 RCT/O - Appendice;13-03-2018;1104;0;53;1;Spese correnti;10;Altre spese correnti;4;Premi di assicurazione;1;Premi di assicurazione contro i danni;3;Premi di assicurazione per responsabilit� civile verso terzi;13-03-2018;
255;1;0;"2.314,00";"2.314,00";MEDIASS GPA S.p.A.; ;Liquidazione spesa appendice polizza RCA 130.74200;13-03-2018;1101;0;54;1;Spese correnti;10;Altre spese correnti;4;Premi di assicurazione;99;Altri premi di assicurazione n.a.c.;999;Altri premi di assicurazione n.a.c.;13-03-2018;
261;1;0;"28.053,07";"28.053,07";ABRUZZO ENERGIE S.R.L.; ;Liquidazione spese impainto fotovoltaico anno 2017.;13-03-2018;1057;1;31;1;Spese correnti;3;Acquisto di beni e servizi;2;Acquisto di servizi;5;Utenze e canoni;999;Utenze e canoni per altri servizi n.a.c.;13-03-2018;
262;1;0;"56.452,94";"56.452,94";ABRUZZO ENERGIE S.R.L.; ;Liquidazione spesa impianto fotovoltaico anno 2017.;13-03-2018;1057;1;316;1;Spese correnti;3;Acquisto di beni e servizi;2;Acquisto di servizi;5;Utenze e canoni;999;Utenze e canoni per altri servizi n.a.c.;13-03-2018;
263;1;0;"1.190,42";"1.190,42";TESORERIA PROVINCIALE DELLO STATO; ;RINNOVO ANNUO ABBONAMENTO MCTC CAPO XV Capitolo 2459.;14-03-2018;1278;0;1;1;Spese correnti;3;Acquisto di beni e servizi;2;Acquisto di servizi;5;Utenze e canoni;3;Accesso a banche dati e a pubblicazioni on line;14-03-2018;
266;1;0;"6.023,95";"6.023,95";DIPENDENTI COMUNALI; ;STIPENDI MESE DI: MARZO 18;20-03-2018;1001;0;0;1;Spese correnti;3;Acquisto di beni e servizi;2;Acquisto di servizi;1;Organi e incarichi istituzionali dell'amministrazione;1;Organi istituzionali dell'amministrazione - Indennit�;20-03-2018;
309;1;0;"405,16";"405,16";ENI S.p.A. Divisione Gas & Power; ;ADDEBITO DIRETTO SDD B2B DA EN-ADDEBITO DIRETTO SDD B2B DA ENI S.P.A. PER 002906146310118 1400326853269-0203187609 (COD.P (P.      53 -R.     307);21-03-2018;1926;0;21;1;Spese correnti;3;Acquisto di beni e servizi;1;Acquisto di beni;2;Altri beni di consumo;2;"Carburanti, combustibili e lubrificanti";21-03-2018;
310;1;0;"42,96";"42,96";AGENZIA DELLE ENTRATE - IVA; ;PAGAMENTO F24 TRAMITE ENTRATEL-PAGAMENTO F24 TRAMITE ENTRATEL - C.F.00094240694 - DISPOSIZIONE N.2023109670) (P.      50 -R.     304);21-03-2018;2154;0;60;1;Spese correnti;10;Altre spese correnti;3;Versamenti IVA a debito;1;Versamenti IVA a debito per le gestioni commerciali;1;Versamenti IVA a debito per le gestioni commerciali;21-03-2018;
312;1;0;"89,14";"89,14";ENI S.p.A. Divisione Gas & Power; ;SALDO Fatt.n. 29061467  del 31/01/2018 Fornitrua buoni carburante.;21-03-2018;1926;0;256;1;Spese correnti;3;Acquisto di beni e servizi;1;Acquisto di beni;2;Altri beni di consumo;2;"Carburanti, combustibili e lubrificanti";21-03-2018;
313;1;0;"1.460,34";"6.463,56";"F. &amp; C. COSTRUZIONI DI FLAMMINIO MARIO";X3218983F9;SALDO Fatt.n. 07/2018  del 27/02/2018 Realizzazione manufatto cimiteriale Flamminio Rocco;21-03-2018;3053;0;37;2;Spese in conto capitale;2;Investimenti fissi lordi e acquisto di terreni;1;Beni materiali;9;Beni immobili;15;Cimiteri;21-03-2018;
313;2;0;"1.500,60";"6.463,56";"F. &amp; C. COSTRUZIONI DI FLAMMINIO MARIO";X3218983F9;SALDO Fatt.n. 06/2018  del 27/02/2018 Realizzazione manufatto cimiteriale - natale Iermuccia;21-03-2018;3053;0;37;2;Spese in conto capitale;2;Investimenti fissi lordi e acquisto di terreni;1;Beni materiali;9;Beni immobili;15;Cimiteri;21-03-2018;
313;3;0;"1.742,16";"6.463,56";"F. &amp; C. COSTRUZIONI DI FLAMMINIO MARIO";X3218983F9;SALDO Fatt.n. 04/2018  del 27/02/2018 Realizzazione manufatto cimiteriale - D'Alessandro Antonio;21-03-2018;3053;0;37;2;Spese in conto capitale;2;Investimenti fissi lordi e acquisto di terreni;1;Beni materiali;9;Beni immobili;15;Cimiteri;21-03-2018;
313;4;0;"1.760,46";"6.463,56";"F. &amp; C. COSTRUZIONI DI FLAMMINIO MARIO";X3218983F9;SALDO Fatt.n. 05/2018  del 27/02/2018 Tealizzazione manufatto cimiteriale - Palombino Anna Maria;21-03-2018;3053;0;37;2;Spese in conto capitale;2;Investimenti fissi lordi e acquisto di terreni;1;Beni materiali;9;Beni immobili;15;Cimiteri;21-03-2018;
315;1;0;"44,00";"44,00";TESORERIA PROVINCIALE DELLO STATO; ;LIQUIDAZIONE PER ACQUISTO CARTE D'IDENTITA';22-03-2018;1116;0;61;1;Spese correnti;3;Acquisto di beni e servizi;1;Acquisto di beni;2;Altri beni di consumo;1;"Carta, cancelleria e stampati";22-03-2018;
317;1;0;"-559,05";"520,01";Doris Gomme di Doris Alessandro Mario;Z7021395EA;SALDO Fatt.n. FATTPA 1_18  del 29/01/2018 Riferimento Ns. Fattura n. FATTPA 3_17 del 29/12/2017;23-03-2018;2171;0;297;1;Spese correnti;3;Acquisto di beni e servizi;2;Acquisto di servizi;9;Manutenzione ordinaria e riparazioni;1;"Manutenzione ordinaria e riparazioni di mezzi di trasporto ad uso civile, di sicurezza e ordine pubblico";23-03-2018;
317;2;0;"520,01";"520,01";Doris Gomme di Doris Alessandro Mario;Z7021395EA;SALDO Fatt.n. FATTPA 2_18  del 29/01/2018 Fornitura pneumatici.;23-03-2018;2171;0;297;1;Spese correnti;3;Acquisto di beni e servizi;2;Acquisto di servizi;9;Manutenzione ordinaria e riparazioni;1;"Manutenzione ordinaria e riparazioni di mezzi di trasporto ad uso civile, di sicurezza e ordine pubblico";23-03-2018;
317;3;0;"559,05";"520,01";Doris Gomme di Doris Alessandro Mario;Z7021395EA;SALDO Fatt.n. FATTPA 3_17  del 29/12/2017 Riparazione gomme e sostituzione valvole;23-03-2018;2171;0;297;1;Spese correnti;3;Acquisto di beni e servizi;2;Acquisto di servizi;9;Manutenzione ordinaria e riparazioni;1;"Manutenzione ordinaria e riparazioni di mezzi di trasporto ad uso civile, di sicurezza e ordine pubblico";23-03-2018;
318;1;0;"58.712,79";"58.712,79";ECO.LAN. S.p.A.; ;SALDO Fatt.n. 101138  del 31/12/2017 Gestione igiene urbana - Dicembre 2017;23-03-2018;1745;0;47;1;Spese correnti;3;Acquisto di beni e servizi;2;Acquisto di servizi;15;Contratti di servizio pubblico;4;Contratti di servizio per la raccolta rifiuti;23-03-2018;
319;1;0;"1.625,48";"1.625,48";CONSORZIO COOPERATIVE SOCIALI S.G.S.;Z6D1FD5C6D;SALDO Fatt.n. 1541/10  del 31/12/2017 Assistenza alunni portatori di handicap - Dicembre 2017;23-03-2018;1362;0;272;1;Spese correnti;3;Acquisto di beni e servizi;2;Acquisto di servizi;11;Prestazioni professionali e specialistiche;2;"Assistenza psicologica, sociale e religiosa";23-03-2018;
320;1;0;"14.196,34";"14.196,34";GECABUS SRLS;6337728A96;SALDO Fatt.n. 10/2018/PA  del 28/02/2018 Servizio trasporto scolastico - Febbraio 2018.;23-03-2018;1424;0;190;1;Spese correnti;3;Acquisto di beni e servizi;2;Acquisto di servizi;15;Contratti di servizio pubblico;2;Contratti di servizio di trasporto scolastico;23-03-2018;
321;1;0;"2.500,00";"2.500,00";SARACINO Maria;Z131CAC1BF;SALDO Fatt.n. 1  del 29/01/2018 Prestazione occasionale;23-03-2018;1118;0;329;1;Spese correnti;3;Acquisto di beni e servizi;2;Acquisto di servizi;4;Acquisto di servizi per formazione e addestramento del personale dell'ente;999;Acquisto di servizi per altre spese per formazione e addestramento n.a.c.;23-03-2018;
322;1;0;"39.331,26";"39.331,26";OTTIMA S.r.l.;606897656D;SALDO Fatt.n. FATTPA 95_17  del 29/12/2017 Canone bimestrale novembre/dicembre 2017 - Gestione impianti pubblica illuminazione;27-03-2018;1939;0;127;1;Spese correnti;3;Acquisto di beni e servizi;2;Acquisto di servizi;15;Contratti di servizio pubblico;15;Contratti di servizio per l'illuminazione pubblica;27-03-2018;
